Workbook

Sheet RCC Data
A1: TxDOT Manuals >
B2: TEXAS DEPARTMENT OF TRANSPORTATION | R2: 255
O3: 161 | R3: 2
O4: 2 | R4: Tx113,4.xls::41085.660347
B5: Roller Compacted Concrete Worksheet | O5: tx4rcc.xlsm::45183.390625 | R5: 45
M7: ="File Version: " & TEXT(MID(sn,SEARCH("::",sn,1)+2,20),"mm/dd/yy hh:mm:ss") -> File Version: 09/14/23 09:22:30
B8: SAMPLE ID: | H8: SAMPLED DATE:
B9: TEST NUMBER: | H9: LETTING DATE:
B10: SAMPLE STATUS: | H10: CONTROLLING CSJ:
B11: COUNTY: | H11: SPEC YEAR:
B12: SAMPLED BY: | H12: SPEC ITEM:
B13: SAMPLE LOCATION: | H13: SPECIAL PROVISION:
B14: MATERIAL CODE: | H14: GRADE:
B15: MATERIAL NAME:
B16: PRODUCER:
B17: AREA ENGINEER: | H17: PROJECT MANAGER:
B19: COURSE\LIFT: | G19: STATION: | J19: DIST. FROM CL:
B20: Roller Compacted Concrete Mix Design
B22: 1. Select aggregates meeting the requirements of section 2.A in Special Specification 3258 "Roller Compacted Concrete"
C24: Select RCC Application:
C26: ="RCC Combined Aggregate Gradation for "&F24 -> RCC Combined Aggregate Gradation for
C27: Sieve Size | E27: Percent Passing by Weight | I27: Actual Gradation - Percent Passing by Weight | K27: Within Master Grading
E28: Minimum Spec Limit | G28: Maximum Spec Limit
C29: 1 in | E29: =IF($F$24="","",IF($F$24="Surface Course",Reference!$X$5,IF($F$24="Base/Subbase Course",Reference!$Z$5))) ->  | G29: =IF($F$24="","",IF($F$24="Surface Course",Reference!$Y$5,IF($F$24="Base/Subbase Course",Reference!$AA$5))) ->  | K29: =IF($I29="","",IF(AND($I29<=$G29,$I29>=$E29),"Yes","No")) -> 
C30: 3/4 in | E30: =IF($F$24="","",IF($F$24="Surface Course",Reference!$X$6,IF($F$24="Base/Subbase Course",Reference!$Z$6))) ->  | G30: =IF($F$24="","",IF($F$24="Surface Course",Reference!$Y$6,IF($F$24="Base/Subbase Course",Reference!$AA$6))) -> 
C31: 1/2 in | E31: =IF($F$24="","",IF($F$24="Surface Course",Reference!$X$7,IF($F$24="Base/Subbase Course",Reference!$Z$7))) ->  | G31: =IF($F$24="","",IF($F$24="Surface Course",Reference!$Y$7,IF($F$24="Base/Subbase Course",Reference!$AA$7))) -> 
C32: 3/8 in | E32: =IF($F$24="","",IF($F$24="Surface Course",Reference!$X$8,IF($F$24="Base/Subbase Course",Reference!$Z$8))) ->  | G32: =IF($F$24="","",IF($F$24="Surface Course",Reference!$Y$8,IF($F$24="Base/Subbase Course",Reference!$AA$8))) -> 
C33: No. 4 | E33: =IF($F$24="","",IF($F$24="Surface Course",Reference!$X$9,IF($F$24="Base/Subbase Course",Reference!$Z$9))) ->  | G33: =IF($F$24="","",IF($F$24="Surface Course",Reference!$Y$9,IF($F$24="Base/Subbase Course",Reference!$AA$9))) -> 
C34: No. 16 | E34: =IF($F$24="","",IF($F$24="Surface Course",Reference!$X$10,IF($F$24="Base/Subbase Course",Reference!$Z$10))) ->  | G34: =IF($F$24="","",IF($F$24="Surface Course",Reference!$Y$10,IF($F$24="Base/Subbase Course",Reference!$AA$10))) -> 
C35: No. 100 | E35: =IF($F$24="","",IF($F$24="Surface Course",Reference!$X$11,IF($F$24="Base/Subbase Course",Reference!$Z$11))) ->  | G35: =IF($F$24="","",IF($F$24="Surface Course",Reference!$Y$11,IF($F$24="Base/Subbase Course",Reference!$AA$11))) -> 
C36: No. 200 | E36: =IF($F$24="","",IF($F$24="Surface Course",Reference!$X$12,IF($F$24="Base/Subbase Course",Reference!$Z$12))) ->  | G36: =IF($F$24="","",IF($F$24="Surface Course",Reference!$Y$12,IF($F$24="Base/Subbase Course",Reference!$AA$12))) ->  | K36: =IF(F24="Base/Subbase Course","--",IF($I36="","",IF(AND($I36<=$G36,$I36>=$E36),"Yes","No"))) -> 
B39: 2. Select a minimum of three (3) cementitious contents. (Select the cementitious contents such that one content will be at an estimated optimum content, a minimum of one additional content below estimated optimum and aminimum of one above estimated optimum)
C41: Estimated Cementitious Content
C42: Optimum (A):
C43: Below Optimum (B): | I43: =IF($F$43="","",IF($F$43>=$F$42,"Select an estimated cementitious content BELOW the estimated optimum","")) -> 
C44: Above Optimum (C):
P45: =IF($F$44="","",IF($F$44<=$F$42,"Select an estimated cementitious content ABOVE the estimated optimum","")) -> 
B47: 3. Determine the optimum moisture content for each cementitious content in accordance with ASTM 1557 (Tex-113, 4-E)
C49: Moisture-Denisty Curve Label | F49: Cementitious Content | H49: Optimum Moisture Content %
C50: Optimum (A): | F50: =IF($F$42="","",$F$42) ->  | H50: 6.2
C51: Below Optimum (B): | F51: =IF($F$43="","",$F$43) ->  | H51: 5.8
C52: Above Optimum (C): | F52: =IF($F$44="","",$F$44) ->  | H52: 6
B55: 4. Cast three (3) samples at optimum moisture content for each cementitious content in accordance with ASTM C 1435
C57: Moisture-Denisty Curve Label | F57: Sample No. | H57: OMC %
C58: Optimum (A): | F58: A1 | H58: =IF($H$50="","",$H$50) -> 6.2
F59: A2 | H59: =IF($H$50="","",$H$50) -> 6.2
F60: A3 | H60: =IF($H$50="","",$H$50) -> 6.2
C61: Below Optimum (B): | F61: B1 | H61: =IF($H$51="","",$H$51) -> 5.8
F62: B2 | H62: =IF($H$51="","",$H$51) -> 5.8
F63: B3 | H63: =IF($H$51="","",$H$51) -> 5.8
C64: Above Optimum (C): | F64: C1 | H64: =IF($H$52="","",$H$52) -> 6
F65: C2 | H65: =IF($H$52="","",$H$52) -> 6
F66: C3 | H66: =IF($H$52="","",$H$52) -> 6
B68: 5. Test all specimens cast for strength in acordacne with TEX 418-A, with the exception that the average minimum compressive strength shall be 4,400 psi at 28 days.
C70: Moisture-Denisty Curve Label | F70: Sample No. | H70: Cementitious Content (%) | J70: Optimum Moisture Content (%) | L70: 28-Day Compressive Strength, f'c (psi) | N70: Average f'c (psi) | P70: Notes
C71: Optimum (A): | F71: A1 | H71: =IF($F$50="","",$F$50) ->  | J71: =IF($H$50="","",$H$50) -> 6.2 | N71: =IF(L71="","",AVERAGE($L$71:$L$73)) ->  | P71: =IF(N71="","",IF(N71<4400,"Min. Avg. Comp. Strength ≠ 4,400 psi at 28 days","")) -> 
F72: A2 | H72: =IF($F$50="","",$F$50) ->  | J72: =IF($H$50="","",$H$50) -> 6.2
F73: A3 | H73: =IF($F$50="","",$F$50) ->  | J73: =IF($H$50="","",$H$50) -> 6.2
C74: Below Optimum (B): | F74: B1 | H74: =IF($F$51="","",$F$51) ->  | J74: =IF($H$51="","",$H$51) -> 5.8 | N74: =IF(L74="","",AVERAGE($L$74:$L$76)) ->  | P74: =IF(N74="","",IF(N74<4400,"Min. Avg. Comp. Strength ≠ 4,400 psi at 28 days","")) -> 
F75: B2 | H75: =IF($F$51="","",$F$51) ->  | J75: =IF($H$51="","",$H$51) -> 5.8
F76: B3 | H76: =IF($F$51="","",$F$51) ->  | J76: =IF($H$51="","",$H$51) -> 5.8
C77: Above Optimum (C): | F77: C1 | H77: =IF($F$52="","",$F$52) ->  | J77: =IF($H$52="","",$H$52) -> 6 | N77: =IF(L77="","",AVERAGE($L$77:$L$79)) ->  | P77: =IF(N77="","",IF(N77<4400,"Min. Avg. Comp. Strength ≠ 4,400 psi at 28 days","")) -> 
F78: C2 | H78: =IF($F$52="","",$F$52) ->  | J78: =IF($H$52="","",$H$52) -> 6
F79: C3 | H79: =IF($F$52="","",$F$52) ->  | J79: =IF($H$52="","",$H$52) -> 6
B82: Remarks: | C82: =NOW() -> 2023-09-14T09:22:30.600
B87: Sample Method: | C87: Sampled By: | F87: Sampled Date:
B88: TX407
B89: Test Method: | C89: Tested By: | F89: Tested Date:
B90: TX418
B92: Test Stamp Code: | E92: Omit Test: | F92: Completed Date: | G92: Reviewed By:
B94: Locked By: | C94: TxDOT: | D94: District: | E94: Area:
B96: Authorized By: | E96: Authorized Date:

Sheet ASTM 1557
B2: TEXAS DEPARTMENT OF TRANSPORTATION
B5: Moisture-Density Curve for Roller Compacted Concrete | R5: 45
B6: ASTM D1557
B8: SAMPLE ID: | E8: =IF(sampleid="","",sampleid) ->  | J8: SAMPLED DATE: | N8: =IF(sampleddate="","",sampleddate) -> 
B9: TEST NUMBER: | E9: =IF(testnumber="","",testnumber) ->  | J9: LETTING DATE: | N9: =IF(lettingdate="","",lettingdate) -> 
B10: SAMPLE STATUS: | E10: =IF(status="","",status) ->  | J10: CONTROLLING CSJ: | N10: =IF(ccsj="","",ccsj) -> 
B11: COUNTY: | E11: =IF(county="","",county) ->  | J11: SPEC YEAR: | N11: =+IF(specyear="","",specyear) -> 
B12: SAMPLED BY: | E12: =IF(sampledby="","",sampledby) ->  | J12: SPEC ITEM: | N12: =IF(specitem="","",specitem) -> 
B13: SAMPLE LOCATION: | E13: =IF(samplelocation="","",samplelocation) ->  | J13: SPECIAL PROVISION: | N13: =IF(specialprovision="","",specialprovision) -> 
B14: MATERIAL CODE: | E14: =IF(material="","",material) ->  | J14: GRADE: | N14: =IF(grade="","",grade) -> 
B15: MATERIAL NAME: | E15: =IF(matl_nm="","",matl_nm) -> 
B16: PRODUCER: | E16: =IF(producer="","",producer) -> 
B17: AREA ENGINEER: | E17: =IF(areaengineer="","",areaengineer) ->  | J17: PROJECT MANAGER: | N17: =IF(PROJECTMANAGER="","",PROJECTMANAGER) -> 
B19: COURSE\LIFT: | E19: =IF(courselift="","",courselift) ->  | G19: STATION: | J19: =IF(station="","",station) ->  | L19: DIST. FROM CL: | O19: =IF(distfromcl="","",distfromcl) -> 
B20: Moisture-Density Work Sheet
B22: Oven Dry Weight, (g):
B23: Weight of Pycnometer & Water, (g):
B24: Weight of Aggr., Pycn.& Water, (g):
B25: Specific Gravity (Apparent)(Override):
B26: Specific Gravity (Apparent)(Calc): | D26: =IF(D25="",IF(ISERROR(D22/(D22+D23-D24)),2.65,D22/(D22+D23-D24)),D25) -> 2.65
B28: Hygroscopic Moisture, (%):
D30: 1-1 | E30: 1-2 | F30: 1-3 | G30: 1-4 | I30: 2-1 | J30: 2-2 | K30: 2-3 | L30: 2-4 | N30: 3-1 | O30: 3-2 | P30: 3-3 | Q30: 3-4
B31: Cementitious Material (%) : | D31: =IF(OR(ISERROR('RCC Data'!$F$42),'RCC Data'!$F$42=""),"",'RCC Data'!$F$42) ->  | I31: =IF(OR(ISERROR('RCC Data'!$F$43),'RCC Data'!$F$43=""),"",'RCC Data'!$F$43) ->  | N31: =IF(OR(ISERROR('RCC Data'!$F$44),'RCC Data'!$F$44=""),"",'RCC Data'!$F$44) -> 
B32: Sample Number : | D32: =$D$31&"% - 1" -> % - 1 | E32: =$D$31&"% - 2" -> % - 2 | F32: =$D$31&"% - 3" -> % - 3 | G32: =$D$31&"% - 4" -> % - 4 | I32: =$I$31&"% - 1" -> % - 1 | J32: =$I$31&"% - 2" -> % - 2 | K32: =$I$31&"% - 3" -> % - 3 | L32: =$I$31&"% - 4" -> % - 4 | N32: =$N$31&"% - 1" -> % - 1 | O32: =$N$31&"% - 2" -> % - 2 | P32: =$N$31&"% - 3" -> % - 3 | Q32: =$N$31&"% - 4" -> % - 4
B33: Percent Water Content, (%) :
B35: Mass of Dry Aggregate, (lb) :
B36: Total Mass of Cementitios Materials, (lb) :
B37: Total Mass of Dry Material, (lb) :
B38: Mass Water Added, (lb) : | D38: =IF(OR(ISERROR((D33/100)*D37),COUNTBLANK(D33:D37)=3,D$37=""),"",(D33/100)*D37) ->  | E38: =IF(OR(ISERROR((E33/100)*E37),COUNTBLANK(E33:E37)=3,E$37=""),"",(E33/100)*E37) ->  | F38: =IF(OR(ISERROR((F33/100)*F37),COUNTBLANK(F33:F37)=3,F$37=""),"",(F33/100)*F37) ->  | G38: =IF(OR(ISERROR((G33/100)*G37),COUNTBLANK(G33:G37)=3,G$37=""),"",(G33/100)*G37) ->  | I38: =IF(OR(ISERROR((I33/100)*I37),COUNTBLANK(I33:I37)=3,I$37=""),"",(I33/100)*I37) ->  | J38: =IF(OR(ISERROR((J33/100)*J37),COUNTBLANK(J33:J37)=3,J$37=""),"",(J33/100)*J37) ->  | K38: =IF(OR(ISERROR((K33/100)*K37),COUNTBLANK(K33:K37)=3,K$37=""),"",(K33/100)*K37) ->  | L38: =IF(OR(ISERROR((L33/100)*L37),COUNTBLANK(L33:L37)=3,L$37=""),"",(L33/100)*L37) ->  | N38: =IF(OR(ISERROR((N33/100)*N37),COUNTBLANK(N33:N37)=3,N$37=""),"",(N33/100)*N37) ->  | O38: =IF(OR(ISERROR((O33/100)*O37),COUNTBLANK(O33:O37)=3,O$37=""),"",(O33/100)*O37) ->  | P38: =IF(OR(ISERROR((P33/100)*P37),COUNTBLANK(P33:P37)=3,P$37=""),"",(P33/100)*P37) ->  | Q38: =IF(OR(ISERROR((Q33/100)*Q37),COUNTBLANK(Q33:Q37)=3,Q$37=""),"",(Q33/100)*Q37) -> 
B40: Wet Mass Specimen & Mold, (lb) :
B41: Mass of Mold, (lb):
D42: =IF(OR(ISERROR(D$41),D$41="",D$40=""),"",D$41) ->  | E42: =IF(OR(ISERROR(E41),E41=""),IF(OR(ISERROR($D$41),$D$41="",E40=""),"",$D$41),E41) ->  | F42: =IF(OR(ISERROR(F41),F41=""),IF(OR(ISERROR($D$41),$D$41="",F40=""),"",$D$41),F41) ->  | G42: =IF(OR(ISERROR(G41),G41=""),IF(OR(ISERROR($D$41),$D$41="",G40=""),"",$D$41),G41) ->  | I42: =IF(OR(ISERROR(I41),I41="",I40=""),"",I41) ->  | J42: =IF(OR(ISERROR(J41),J41=""),IF(OR(ISERROR(I41),I41="",J40=""),"",I41),J41) ->  | K42: =IF(OR(ISERROR(K41),K41=""),IF(OR(ISERROR(I41),I41="",K40=""),"",I41),K41) ->  | L42: =IF(OR(ISERROR(L41),L41=""),IF(OR(ISERROR(I41),I41="",L40=""),"",I41),L41) ->  | N42: =IF(OR(ISERROR(N41),N41="",N40=""),"",N41) ->  | O42: =IF(OR(ISERROR(O41),O41=""),IF(OR(ISERROR(N41),N41="",O40=""),"",N41),O41) ->  | P42: =IF(OR(ISERROR(P41),P41=""),IF(OR(ISERROR(N41),N41="",P40=""),"",N41),P41) ->  | Q42: =IF(OR(ISERROR(Q41),Q41=""),IF(OR(ISERROR(N41),N41="",Q40=""),"",N41),Q41) -> 
B43: Wet Mass Specimen, (lb): | D43: =IF(N(D40)+N(D42)=0,"",N(D40)-N(D42)) ->  | E43: =IF(N(E40)+N(E42)=0,"",N(E40)-N(E42)) ->  | F43: =IF(N(F40)+N(F42)=0,"",N(F40)-N(F42)) ->  | G43: =IF(N(G40)+N(G42)=0,"",N(G40)-N(G42)) ->  | I43: =IF(N(I40)+N(I42)=0,"",N(I40)-N(I42)) ->  | J43: =IF(N(J40)+N(J42)=0,"",N(J40)-N(J42)) ->  | K43: =IF(N(K40)+N(K42)=0,"",N(K40)-N(K42)) ->  | L43: =IF(N(L40)+N(L42)=0,"",N(L40)-N(L42)) ->  | N43: =IF(N(N40)+N(N42)=0,"",N(N40)-N(N42)) ->  | O43: =IF(N(O40)+N(O42)=0,"",N(O40)-N(O42)) ->  | P43: =IF(N(P40)+N(P42)=0,"",N(P40)-N(P42)) ->  | Q43: =IF(N(Q40)+N(Q42)=0,"",N(Q40)-N(Q42)) -> 
B44: Height of Specimen, (in.):
B45: Volume per Linear mm., (in.):
D46: =IF(OR(ISERROR(D45),D45="",D44=""),"",D45) ->  | E46: =IF(OR(ISERROR(E45),E45=""),IF(OR(ISERROR($D$45),$D$45="",E44=""),"",$D$45),E45) ->  | F46: =IF(OR(ISERROR(F45),F45=""),IF(OR(ISERROR($D$45),$D$45="",F44=""),"",$D$45),F45) ->  | G46: =IF(OR(ISERROR(G45),G45=""),IF(OR(ISERROR($D$45),$D$45="",G44=""),"",$D$45),G45) ->  | I46: =IF(OR(ISERROR(I45),I45="",I44=""),"",I45) ->  | J46: =IF(OR(ISERROR(J45),J45=""),IF(OR(ISERROR(I45),I45="",J44=""),"",I45),J45) ->  | K46: =IF(OR(ISERROR(K45),K45=""),IF(OR(ISERROR(I45),I45="",K44=""),"",I45),K45) ->  | L46: =IF(OR(ISERROR(L45),L45=""),IF(OR(ISERROR(I45),I45="",L44=""),"",I45),L45) ->  | N46: =IF(OR(ISERROR(N45),N45="",N44=""),"",N45) ->  | O46: =IF(OR(ISERROR(O45),O45=""),IF(OR(ISERROR(N45),N45="",O44=""),"",N45),O45) ->  | P46: =IF(OR(ISERROR(P45),P45=""),IF(OR(ISERROR(N45),N45="",P44=""),"",N45),P45) ->  | Q46: =IF(OR(ISERROR(Q45),Q45=""),IF(OR(ISERROR(N45),N45="",Q44=""),"",N45),Q45) -> 
B47: Volume of Specimen, (ft^3): | D47: =IF(ISERROR(IF(AND(D44="",D46=""),"",D46*D44)),"",IF(AND(D44="",D46=""),"",D46*D44)) ->  | E47: =IF(ISERROR(IF(AND(E44="",E46=""),"",E46*E44)),"",IF(AND(E44="",E46=""),"",E46*E44)) ->  | F47: =IF(ISERROR(IF(AND(F44="",F46=""),"",F46*F44)),"",IF(AND(F44="",F46=""),"",F46*F44)) ->  | G47: =IF(ISERROR(IF(AND(G44="",G46=""),"",G46*G44)),"",IF(AND(G44="",G46=""),"",G46*G44)) ->  | I47: =IF(ISERROR(IF(AND(I44="",I46=""),"",I46*I44)),"",IF(AND(I44="",I46=""),"",I46*I44)) ->  | J47: =IF(ISERROR(IF(AND(J44="",J46=""),"",J46*J44)),"",IF(AND(J44="",J46=""),"",J46*J44)) ->  | K47: =IF(ISERROR(IF(AND(K44="",K46=""),"",K46*K44)),"",IF(AND(K44="",K46=""),"",K46*K44)) ->  | L47: =IF(ISERROR(IF(AND(L44="",L46=""),"",L46*L44)),"",IF(AND(L44="",L46=""),"",L46*L44)) ->  | N47: =IF(ISERROR(IF(AND(N44="",N46=""),"",N46*N44)),"",IF(AND(N44="",N46=""),"",N46*N44)) ->  | O47: =IF(ISERROR(IF(AND(O44="",O46=""),"",O46*O44)),"",IF(AND(O44="",O46=""),"",O46*O44)) ->  | P47: =IF(ISERROR(IF(AND(P44="",P46=""),"",P46*P44)),"",IF(AND(P44="",P46=""),"",P46*P44)) ->  | Q47: =IF(ISERROR(IF(AND(Q44="",Q46=""),"",Q46*Q44)),"",IF(AND(Q44="",Q46=""),"",Q46*Q44)) -> 
B48: Wet Density of Specimen, (lb): | D48: =IF(ISERROR(D43/D47),"",D43/D47) ->  | E48: =IF(ISERROR(E43/E47),"",E43/E47) ->  | F48: =IF(ISERROR(F43/F47),"",F43/F47) ->  | G48: =IF(ISERROR(G43/G47),"",G43/G47) ->  | I48: =IF(ISERROR(I43/I47),"",I43/I47) ->  | J48: =IF(ISERROR(J43/J47),"",J43/J47) ->  | K48: =IF(ISERROR(K43/K47),"",K43/K47) ->  | L48: =IF(ISERROR(L43/L47),"",L43/L47) ->  | N48: =IF(ISERROR(N43/N47),"",N43/N47) ->  | O48: =IF(ISERROR(O43/O47),"",O43/O47) ->  | P48: =IF(ISERROR(P43/P47),"",P43/P47) ->  | Q48: =IF(ISERROR(Q43/Q47),"",Q43/Q47) -> 
B49: Wet Mass of Pan & Specimen, (lb):
B50: Dry Mass Pan & Specimen, (lb):
B51: Tare Mass Pan, (lb):
B52: Dry Mass Material , (lb): | D52: =IF(COUNTBLANK(D50:D51)=2,"",D50-D51) ->  | E52: =IF(COUNTBLANK(E50:E51)=2,"",E50-E51) ->  | F52: =IF(COUNTBLANK(F50:F51)=2,"",F50-F51) ->  | G52: =IF(COUNTBLANK(G50:G51)=2,"",G50-G51) ->  | I52: =IF(COUNTBLANK(I50:I51)=2,"",I50-I51) ->  | J52: =IF(COUNTBLANK(J50:J51)=2,"",J50-J51) ->  | K52: =IF(COUNTBLANK(K50:K51)=2,"",K50-K51) ->  | L52: =IF(COUNTBLANK(L50:L51)=2,"",L50-L51) ->  | N52: =IF(COUNTBLANK(N50:N51)=2,"",N50-N51) ->  | O52: =IF(COUNTBLANK(O50:O51)=2,"",O50-O51) ->  | P52: =IF(COUNTBLANK(P50:P51)=2,"",P50-P51) ->  | Q52: =IF(COUNTBLANK(Q50:Q51)=2,"",Q50-Q51) -> 
B53: Mass Water, (lb): | D53: =IF(COUNTBLANK(D49:D50)=2,"",D49-D50) ->  | E53: =IF(COUNTBLANK(E49:E50)=2,"",E49-E50) ->  | F53: =IF(COUNTBLANK(F49:F50)=2,"",F49-F50) ->  | G53: =IF(COUNTBLANK(G49:G50)=2,"",G49-G50) ->  | I53: =IF(COUNTBLANK(I49:I50)=2,"",I49-I50) ->  | J53: =IF(COUNTBLANK(J49:J50)=2,"",J49-J50) ->  | K53: =IF(COUNTBLANK(K49:K50)=2,"",K49-K50) ->  | L53: =IF(COUNTBLANK(L49:L50)=2,"",L49-L50) ->  | N53: =IF(COUNTBLANK(N49:N50)=2,"",N49-N50) ->  | O53: =IF(COUNTBLANK(O49:O50)=2,"",O49-O50) ->  | P53: =IF(COUNTBLANK(P49:P50)=2,"",P49-P50) ->  | Q53: =IF(COUNTBLANK(Q49:Q50)=2,"",Q49-Q50) -> 
B54: Percent Water on Total , (%): | D54: =IF(ISERROR((D53/D52)*100),"",(D53/D52)*100) ->  | E54: =IF(ISERROR((E53/E52)*100),"",(E53/E52)*100) ->  | F54: =IF(ISERROR((F53/F52)*100),"",(F53/F52)*100) ->  | G54: =IF(ISERROR((G53/G52)*100),"",(G53/G52)*100) ->  | I54: =IF(ISERROR((I53/I52)*100),"",(I53/I52)*100) ->  | J54: =IF(ISERROR((J53/J52)*100),"",(J53/J52)*100) ->  | K54: =IF(ISERROR((K53/K52)*100),"",(K53/K52)*100) ->  | L54: =IF(ISERROR((L53/L52)*100),"",(L53/L52)*100) ->  | N54: =IF(ISERROR((N53/N52)*100),"",(N53/N52)*100) ->  | O54: =IF(ISERROR((O53/O52)*100),"",(O53/O52)*100) ->  | P54: =IF(ISERROR((P53/P52)*100),"",(P53/P52)*100) ->  | Q54: =IF(ISERROR((Q53/Q52)*100),"",(Q53/Q52)*100) -> 
B55: Dry Density, (pcf): | D55: =IF(ISERROR(D48/(1+(D54/100))),"",D48/(1+(D54/100))) ->  | E55: =IF(ISERROR(E48/(1+(E54/100))),"",E48/(1+(E54/100))) ->  | F55: =IF(ISERROR(F48/(1+(F54/100))),"",F48/(1+(F54/100))) ->  | G55: =IF(ISERROR(G48/(1+(G54/100))),"",G48/(1+(G54/100))) ->  | I55: =IF(ISERROR(I48/(1+(I54/100))),"",I48/(1+(I54/100))) ->  | J55: =IF(ISERROR(J48/(1+(J54/100))),"",J48/(1+(J54/100))) ->  | K55: =IF(ISERROR(K48/(1+(K54/100))),"",K48/(1+(K54/100))) ->  | L55: =IF(ISERROR(L48/(1+(L54/100))),"",L48/(1+(L54/100))) ->  | N55: =IF(ISERROR(N48/(1+(N54/100))),"",N48/(1+(N54/100))) ->  | O55: =IF(ISERROR(O48/(1+(O54/100))),"",O48/(1+(O54/100))) ->  | P55: =IF(ISERROR(P48/(1+(P54/100))),"",P48/(1+(P54/100))) ->  | Q55: =IF(ISERROR(Q48/(1+(Q54/100))),"",Q48/(1+(Q54/100))) -> 
B56: Estimated Dry Density, (pcf): | D56: =IF(ISERROR(D48/(1+(D33/100))),"",D48/(1+(D33/100))) ->  | E56: =IF(ISERROR(E48/(1+(E33/100))),"",E48/(1+(E33/100))) ->  | F56: =IF(ISERROR(F48/(1+(F33/100))),"",F48/(1+(F33/100))) ->  | G56: =IF(ISERROR(G48/(1+(G33/100))),"",G48/(1+(G33/100))) ->  | I56: =IF(ISERROR(I48/(1+(I33/100))),"",I48/(1+(I33/100))) ->  | J56: =IF(ISERROR(J48/(1+(J33/100))),"",J48/(1+(J33/100))) ->  | K56: =IF(ISERROR(K48/(1+(K33/100))),"",K48/(1+(K33/100))) ->  | L56: =IF(ISERROR(L48/(1+(L33/100))),"",L48/(1+(L33/100))) ->  | N56: =IF(ISERROR(N48/(1+(N33/100))),"",N48/(1+(N33/100))) ->  | O56: =IF(ISERROR(O48/(1+(O33/100))),"",O48/(1+(O33/100))) ->  | P56: =IF(ISERROR(P48/(1+(P33/100))),"",P48/(1+(P33/100))) ->  | Q56: =IF(ISERROR(Q48/(1+(Q33/100))),"",Q48/(1+(Q33/100))) -> 
B58: Max Dry Density, (pcf): | D58: =IF(ISERROR(IF(AND(D23>0,D24>0),Reference!C6,IF(G53>0,Reference!C6,"Need SG"))),"",IF(AND(D23>0,D24>0),Reference!C6,IF(G53>0,Reference!C6,"Need SG"))) ->  | I58: =IF(ISERROR(IF(AND(D23>0,D24>0),Reference!E6,IF(L53>0,Reference!E6,"Need SG"))),"",IF(AND(D23>0,D24>0),Reference!E6,IF(L53>0,Reference!E6,"Need SG"))) ->  | N58: =IF(ISERROR(IF(AND(D23>0,D24>0),Reference!G6,IF(Q53>0,Reference!G6,"Need SG"))),"",IF(AND(D23>0,D24>0),Reference!G6,IF(Q53>0,Reference!G6,"Need SG"))) -> 
B59: Optimum Moisture Content, (%): | D59: =IF(ISERROR(Reference!C7),"",Reference!C7) ->  | I59: =IF(ISERROR(Reference!E7),"",Reference!E7) ->  | N59: =IF(ISERROR(Reference!G7),"",Reference!G7) -> 
B60: M-D Graph R2 Value: | D60: =IF(ISERROR(Reference!C8),"",Reference!C8) ->  | I60: =IF(ISERROR(Reference!E8),"",Reference!E8) ->  | N60: =IF(ISERROR(Reference!G8),"",Reference!G8) -> 
B62: Remarks:
B67: Sample Method: | C67: Sampled By: | F67: Sampled Date:
B68: TX407
B69: Test Method: | C69: Tested By: | F69: Tested Date:
B70: ASTM D1557

Sheet Optimum Cement Content Graph
B31: Best-Fit Coefficients | G31: Optimum Cement Values
B32: Slope, m = | E32: =IF(ISERROR(ROUND(SLOPE('RCC Data'!$L$71:$L$79,'RCC Data'!$H$71:$H$79),1)),"",ROUND(SLOPE('RCC Data'!$L$71:$L$79,'RCC Data'!$H$71:$H$79),1)) ->  | G32: Target Strength (psi): | J32: 4400
B33: Intercept, b = | E33: =IF(ISERROR(ROUND(INTERCEPT('RCC Data'!$L$71:$L$79,'RCC Data'!$H$71:$H$79),1)),"",ROUND(INTERCEPT('RCC Data'!$L$71:$L$79,'RCC Data'!$H$71:$H$79),1)) ->  | G33: Optimum Cement Content (%): | J33: =IF($E$32="","",(($J$32)-($E$33))/$E$32) -> 

Sheet RX (hidden)
A1: 386
A2: Fld_nbr | B2: Value | C2: Desc_1 | D2: Desc_2 | E2: Desc_3 | F2: Desc_4 | G2: Desc_5 | H2: Desc_6 | I2: Desc_7
A3: 1 | B3: =IF('RCC Data'!$B$83="","",'RCC Data'!$B$83) ->  | C3: ='RCC Data'!$B$82 -> Remarks:
A4: 2 | B4: =IF('RCC Data'!$E$19="","",'RCC Data'!$E$19) ->  | C4: =IF('RCC Data'!$D$19="","",'RCC Data'!$D$19) -> 
A5: 3 | B5: =IF('RCC Data'!$C$90="","",'RCC Data'!$C$90) ->  | C5: Tested By | D5: =IF('RCC Data'!$B$90="","",'RCC Data'!$B$90) -> TX418
A6: 4 | B6: =IF('RCC Data'!$F$90="","",'RCC Data'!$F$90) ->  | C6: Tested Date | D6: =IF('RCC Data'!$B$90="","",'RCC Data'!$B$90) -> TX418
A7: 5 | B7: =IF('ASTM 1557'!$C$70="","",'ASTM 1557'!$C$70) ->  | C7: Tested By | D7: =IF('ASTM 1557'!$B$70="","",'ASTM 1557'!$B$70) -> ASTM D1557
A8: 6 | B8: =IF('ASTM 1557'!$F$70="","",'ASTM 1557'!$F$70) ->  | C8: Tested Date | D8: =IF('ASTM 1557'!$B$70="","",'ASTM 1557'!$B$70) -> ASTM D1557
A9: 7 | B9: =IF('RCC Data'!$F$24="","",'RCC Data'!$F$24) ->  | C9: =IF( 'RCC Data'!$B$5="","", 'RCC Data'!$B$5) -> Roller Compacted Concrete Worksheet | D9: =IF('RCC Data'!$C$24="","",'RCC Data'!$C$24) -> Select RCC Application:
A10: 8 | B10: =IF('RCC Data'!$E$29="","",'RCC Data'!$E$29) ->  | C10: =IF( 'RCC Data'!$C$26="","", 'RCC Data'!$C$26) -> RCC Combined Aggregate Gradation for | D10: =IF('RCC Data'!$E$27="","",'RCC Data'!$E$27) -> Percent Passing by Weight | E10: =IF('RCC Data'!$E$28="","",'RCC Data'!$E$28) -> Minimum Spec Limit | F10: =IF('RCC Data'!$C$27="","",'RCC Data'!$C$27) -> Sieve Size | G10: =IF('RCC Data'!$C$29="","",'RCC Data'!$C$29) -> 1 in
A11: 9 | B11: =IF('RCC Data'!$E$30="","",'RCC Data'!$E$30) ->  | C11: =IF( 'RCC Data'!$C$26="","", 'RCC Data'!$C$26) -> RCC Combined Aggregate Gradation for | D11: =IF('RCC Data'!$E$27="","",'RCC Data'!$E$27) -> Percent Passing by Weight | E11: =IF('RCC Data'!$E$28="","",'RCC Data'!$E$28) -> Minimum Spec Limit | F11: =IF('RCC Data'!$C$27="","",'RCC Data'!$C$27) -> Sieve Size | G11: =IF('RCC Data'!$C$30="","",'RCC Data'!$C$30) -> 3/4 in
A12: 10 | B12: =IF('RCC Data'!$E$31="","",'RCC Data'!$E$31) ->  | C12: =IF( 'RCC Data'!$C$26="","", 'RCC Data'!$C$26) -> RCC Combined Aggregate Gradation for | D12: =IF('RCC Data'!$E$27="","",'RCC Data'!$E$27) -> Percent Passing by Weight | E12: =IF('RCC Data'!$E$28="","",'RCC Data'!$E$28) -> Minimum Spec Limit | F12: =IF('RCC Data'!$C$27="","",'RCC Data'!$C$27) -> Sieve Size | G12: =IF('RCC Data'!$C$31="","",'RCC Data'!$C$31) -> 1/2 in
A13: 11 | B13: =IF('RCC Data'!$E$32="","",'RCC Data'!$E$32) ->  | C13: =IF( 'RCC Data'!$C$26="","", 'RCC Data'!$C$26) -> RCC Combined Aggregate Gradation for | D13: =IF('RCC Data'!$E$27="","",'RCC Data'!$E$27) -> Percent Passing by Weight | E13: =IF('RCC Data'!$E$28="","",'RCC Data'!$E$28) -> Minimum Spec Limit | F13: =IF('RCC Data'!$C$27="","",'RCC Data'!$C$27) -> Sieve Size | G13: =IF('RCC Data'!$C$32="","",'RCC Data'!$C$32) -> 3/8 in
A14: 12 | B14: =IF('RCC Data'!$E$33="","",'RCC Data'!$E$33) ->  | C14: =IF( 'RCC Data'!$C$26="","", 'RCC Data'!$C$26) -> RCC Combined Aggregate Gradation for | D14: =IF('RCC Data'!$E$27="","",'RCC Data'!$E$27) -> Percent Passing by Weight | E14: =IF('RCC Data'!$E$28="","",'RCC Data'!$E$28) -> Minimum Spec Limit | F14: =IF('RCC Data'!$C$27="","",'RCC Data'!$C$27) -> Sieve Size | G14: =IF('RCC Data'!$C$33="","",'RCC Data'!$C$33) -> No. 4
A15: 13 | B15: =IF('RCC Data'!$E$34="","",'RCC Data'!$E$34) ->  | C15: =IF( 'RCC Data'!$C$26="","", 'RCC Data'!$C$26) -> RCC Combined Aggregate Gradation for | D15: =IF('RCC Data'!$E$27="","",'RCC Data'!$E$27) -> Percent Passing by Weight | E15: =IF('RCC Data'!$E$28="","",'RCC Data'!$E$28) -> Minimum Spec Limit | F15: =IF('RCC Data'!$C$27="","",'RCC Data'!$C$27) -> Sieve Size | G15: =IF('RCC Data'!$C$34="","",'RCC Data'!$C$34) -> No. 16
A16: 14 | B16: =IF('RCC Data'!$E$35="","",'RCC Data'!$E$35) ->  | C16: =IF( 'RCC Data'!$C$26="","", 'RCC Data'!$C$26) -> RCC Combined Aggregate Gradation for | D16: =IF('RCC Data'!$E$27="","",'RCC Data'!$E$27) -> Percent Passing by Weight | E16: =IF('RCC Data'!$E$28="","",'RCC Data'!$E$28) -> Minimum Spec Limit | F16: =IF('RCC Data'!$C$27="","",'RCC Data'!$C$27) -> Sieve Size | G16: =IF('RCC Data'!$C$35="","",'RCC Data'!$C$35) -> No. 100
A17: 15 | B17: =IF('RCC Data'!$E$36="","",'RCC Data'!$E$36) ->  | C17: =IF( 'RCC Data'!$C$26="","", 'RCC Data'!$C$26) -> RCC Combined Aggregate Gradation for | D17: =IF('RCC Data'!$E$27="","",'RCC Data'!$E$27) -> Percent Passing by Weight | E17: =IF('RCC Data'!$E$28="","",'RCC Data'!$E$28) -> Minimum Spec Limit | F17: =IF('RCC Data'!$C$27="","",'RCC Data'!$C$27) -> Sieve Size | G17: =IF('RCC Data'!$C$36="","",'RCC Data'!$C$36) -> No. 200
A18: 16 | B18: =IF('RCC Data'!$G$29="","",'RCC Data'!$G$29) ->  | C18: =IF( 'RCC Data'!$C$26="","", 'RCC Data'!$C$26) -> RCC Combined Aggregate Gradation for | D18: =IF('RCC Data'!$E$27="","",'RCC Data'!$E$27) -> Percent Passing by Weight | E18: =IF('RCC Data'!$G$28="","",'RCC Data'!$G$28) -> Maximum Spec Limit | F18: =IF('RCC Data'!$C$27="","",'RCC Data'!$C$27) -> Sieve Size | G18: =IF('RCC Data'!$C$29="","",'RCC Data'!$C$29) -> 1 in
A19: 17 | B19: =IF('RCC Data'!$G$30="","",'RCC Data'!$G$30) ->  | C19: =IF( 'RCC Data'!$C$26="","", 'RCC Data'!$C$26) -> RCC Combined Aggregate Gradation for | D19: =IF('RCC Data'!$E$27="","",'RCC Data'!$E$27) -> Percent Passing by Weight | E19: =IF('RCC Data'!$G$28="","",'RCC Data'!$G$28) -> Maximum Spec Limit | F19: =IF('RCC Data'!$C$27="","",'RCC Data'!$C$27) -> Sieve Size | G19: =IF('RCC Data'!$C$30="","",'RCC Data'!$C$30) -> 3/4 in
A20: 18 | B20: =IF('RCC Data'!$G$31="","",'RCC Data'!$G$31) ->  | C20: =IF( 'RCC Data'!$C$26="","", 'RCC Data'!$C$26) -> RCC Combined Aggregate Gradation for | D20: =IF('RCC Data'!$E$27="","",'RCC Data'!$E$27) -> Percent Passing by Weight | E20: =IF('RCC Data'!$G$28="","",'RCC Data'!$G$28) -> Maximum Spec Limit | F20: =IF('RCC Data'!$C$27="","",'RCC Data'!$C$27) -> Sieve Size | G20: =IF('RCC Data'!$C$31="","",'RCC Data'!$C$31) -> 1/2 in
A21: 19 | B21: =IF('RCC Data'!$G$32="","",'RCC Data'!$G$32) ->  | C21: =IF( 'RCC Data'!$C$26="","", 'RCC Data'!$C$26) -> RCC Combined Aggregate Gradation for | D21: =IF('RCC Data'!$E$27="","",'RCC Data'!$E$27) -> Percent Passing by Weight | E21: =IF('RCC Data'!$G$28="","",'RCC Data'!$G$28) -> Maximum Spec Limit | F21: =IF('RCC Data'!$C$27="","",'RCC Data'!$C$27) -> Sieve Size | G21: =IF('RCC Data'!$C$32="","",'RCC Data'!$C$32) -> 3/8 in
A22: 20 | B22: =IF('RCC Data'!$G$33="","",'RCC Data'!$G$33) ->  | C22: =IF( 'RCC Data'!$C$26="","", 'RCC Data'!$C$26) -> RCC Combined Aggregate Gradation for | D22: =IF('RCC Data'!$E$27="","",'RCC Data'!$E$27) -> Percent Passing by Weight | E22: =IF('RCC Data'!$G$28="","",'RCC Data'!$G$28) -> Maximum Spec Limit | F22: =IF('RCC Data'!$C$27="","",'RCC Data'!$C$27) -> Sieve Size | G22: =IF('RCC Data'!$C$33="","",'RCC Data'!$C$33) -> No. 4
A23: 21 | B23: =IF('RCC Data'!$G$34="","",'RCC Data'!$G$34) ->  | C23: =IF( 'RCC Data'!$C$26="","", 'RCC Data'!$C$26) -> RCC Combined Aggregate Gradation for | D23: =IF('RCC Data'!$E$27="","",'RCC Data'!$E$27) -> Percent Passing by Weight | E23: =IF('RCC Data'!$G$28="","",'RCC Data'!$G$28) -> Maximum Spec Limit | F23: =IF('RCC Data'!$C$27="","",'RCC Data'!$C$27) -> Sieve Size | G23: =IF('RCC Data'!$C$34="","",'RCC Data'!$C$34) -> No. 16
A24: 22 | B24: =IF('RCC Data'!$G$35="","",'RCC Data'!$G$35) ->  | C24: =IF( 'RCC Data'!$C$26="","", 'RCC Data'!$C$26) -> RCC Combined Aggregate Gradation for | D24: =IF('RCC Data'!$E$27="","",'RCC Data'!$E$27) -> Percent Passing by Weight | E24: =IF('RCC Data'!$G$28="","",'RCC Data'!$G$28) -> Maximum Spec Limit | F24: =IF('RCC Data'!$C$27="","",'RCC Data'!$C$27) -> Sieve Size | G24: =IF('RCC Data'!$C$35="","",'RCC Data'!$C$35) -> No. 100
A25: 23 | B25: =IF('RCC Data'!$G$36="","",'RCC Data'!$G$36) ->  | C25: =IF( 'RCC Data'!$C$26="","", 'RCC Data'!$C$26) -> RCC Combined Aggregate Gradation for | D25: =IF('RCC Data'!$E$27="","",'RCC Data'!$E$27) -> Percent Passing by Weight | E25: =IF('RCC Data'!$G$28="","",'RCC Data'!$G$28) -> Maximum Spec Limit | F25: =IF('RCC Data'!$C$27="","",'RCC Data'!$C$27) -> Sieve Size | G25: =IF('RCC Data'!$C$36="","",'RCC Data'!$C$36) -> No. 200
A26: 24 | B26: =IF('RCC Data'!$I$29="","",'RCC Data'!$I$29) ->  | C26: =IF( 'RCC Data'!$C$26="","", 'RCC Data'!$C$26) -> RCC Combined Aggregate Gradation for | D26: =IF('RCC Data'!$I$27="","",'RCC Data'!$I$27) -> Actual Gradation - Percent Passing by Weight | E26: =IF('RCC Data'!$C$27="","",'RCC Data'!$C$27) -> Sieve Size | F26: =IF('RCC Data'!$C$29="","",'RCC Data'!$C$29) -> 1 in
A27: 25 | B27: =IF('RCC Data'!$I$30="","",'RCC Data'!$I$30) ->  | C27: =IF( 'RCC Data'!$C$26="","", 'RCC Data'!$C$26) -> RCC Combined Aggregate Gradation for | D27: =IF('RCC Data'!$I$27="","",'RCC Data'!$I$27) -> Actual Gradation - Percent Passing by Weight | E27: =IF('RCC Data'!$C$27="","",'RCC Data'!$C$27) -> Sieve Size | F27: =IF('RCC Data'!$C$30="","",'RCC Data'!$C$30) -> 3/4 in
A28: 26 | B28: =IF('RCC Data'!$I$31="","",'RCC Data'!$I$31) ->  | C28: =IF( 'RCC Data'!$C$26="","", 'RCC Data'!$C$26) -> RCC Combined Aggregate Gradation for | D28: =IF('RCC Data'!$I$27="","",'RCC Data'!$I$27) -> Actual Gradation - Percent Passing by Weight | E28: =IF('RCC Data'!$C$27="","",'RCC Data'!$C$27) -> Sieve Size | F28: =IF('RCC Data'!$C$31="","",'RCC Data'!$C$31) -> 1/2 in
A29: 27 | B29: =IF('RCC Data'!$I$32="","",'RCC Data'!$I$32) ->  | C29: =IF( 'RCC Data'!$C$26="","", 'RCC Data'!$C$26) -> RCC Combined Aggregate Gradation for | D29: =IF('RCC Data'!$I$27="","",'RCC Data'!$I$27) -> Actual Gradation - Percent Passing by Weight | E29: =IF('RCC Data'!$C$27="","",'RCC Data'!$C$27) -> Sieve Size | F29: =IF('RCC Data'!$C$32="","",'RCC Data'!$C$32) -> 3/8 in
A30: 28 | B30: =IF('RCC Data'!$I$33="","",'RCC Data'!$I$33) ->  | C30: =IF( 'RCC Data'!$C$26="","", 'RCC Data'!$C$26) -> RCC Combined Aggregate Gradation for | D30: =IF('RCC Data'!$I$27="","",'RCC Data'!$I$27) -> Actual Gradation - Percent Passing by Weight | E30: =IF('RCC Data'!$C$27="","",'RCC Data'!$C$27) -> Sieve Size | F30: =IF('RCC Data'!$C$33="","",'RCC Data'!$C$33) -> No. 4
A31: 29 | B31: =IF('RCC Data'!$I$34="","",'RCC Data'!$I$34) ->  | C31: =IF( 'RCC Data'!$C$26="","", 'RCC Data'!$C$26) -> RCC Combined Aggregate Gradation for | D31: =IF('RCC Data'!$I$27="","",'RCC Data'!$I$27) -> Actual Gradation - Percent Passing by Weight | E31: =IF('RCC Data'!$C$27="","",'RCC Data'!$C$27) -> Sieve Size | F31: =IF('RCC Data'!$C$34="","",'RCC Data'!$C$34) -> No. 16
A32: 30 | B32: =IF('RCC Data'!$I$35="","",'RCC Data'!$I$35) ->  | C32: =IF( 'RCC Data'!$C$26="","", 'RCC Data'!$C$26) -> RCC Combined Aggregate Gradation for | D32: =IF('RCC Data'!$I$27="","",'RCC Data'!$I$27) -> Actual Gradation - Percent Passing by Weight | E32: =IF('RCC Data'!$C$27="","",'RCC Data'!$C$27) -> Sieve Size | F32: =IF('RCC Data'!$C$35="","",'RCC Data'!$C$35) -> No. 100
A33: 31 | B33: =IF('RCC Data'!$I$36="","",'RCC Data'!$I$36) ->  | C33: =IF( 'RCC Data'!$C$26="","", 'RCC Data'!$C$26) -> RCC Combined Aggregate Gradation for | D33: =IF('RCC Data'!$I$27="","",'RCC Data'!$I$27) -> Actual Gradation - Percent Passing by Weight | E33: =IF('RCC Data'!$C$27="","",'RCC Data'!$C$27) -> Sieve Size | F33: =IF('RCC Data'!$C$36="","",'RCC Data'!$C$36) -> No. 200
A34: 32 | B34: =IF('RCC Data'!$K$29="","",'RCC Data'!$K$29) ->  | C34: =IF( 'RCC Data'!$C$26="","", 'RCC Data'!$C$26) -> RCC Combined Aggregate Gradation for | D34: =IF('RCC Data'!$K$27="","",'RCC Data'!$K$27) -> Within Master Grading | E34: =IF('RCC Data'!$C$27="","",'RCC Data'!$C$27) -> Sieve Size | F34: =IF('RCC Data'!$C$29="","",'RCC Data'!$C$29) -> 1 in
A35: 33 | B35: =IF('RCC Data'!$K$30="","",'RCC Data'!$K$30) ->  | C35: =IF( 'RCC Data'!$C$26="","", 'RCC Data'!$C$26) -> RCC Combined Aggregate Gradation for | D35: =IF('RCC Data'!$K$27="","",'RCC Data'!$K$27) -> Within Master Grading | E35: =IF('RCC Data'!$C$27="","",'RCC Data'!$C$27) -> Sieve Size | F35: =IF('RCC Data'!$C$30="","",'RCC Data'!$C$30) -> 3/4 in
A36: 34 | B36: =IF('RCC Data'!$K$31="","",'RCC Data'!$K$31) ->  | C36: =IF( 'RCC Data'!$C$26="","", 'RCC Data'!$C$26) -> RCC Combined Aggregate Gradation for | D36: =IF('RCC Data'!$K$27="","",'RCC Data'!$K$27) -> Within Master Grading | E36: =IF('RCC Data'!$C$27="","",'RCC Data'!$C$27) -> Sieve Size | F36: =IF('RCC Data'!$C$31="","",'RCC Data'!$C$31) -> 1/2 in
A37: 35 | B37: =IF('RCC Data'!$K$32="","",'RCC Data'!$K$32) ->  | C37: =IF( 'RCC Data'!$C$26="","", 'RCC Data'!$C$26) -> RCC Combined Aggregate Gradation for | D37: =IF('RCC Data'!$K$27="","",'RCC Data'!$K$27) -> Within Master Grading | E37: =IF('RCC Data'!$C$27="","",'RCC Data'!$C$27) -> Sieve Size | F37: =IF('RCC Data'!$C$32="","",'RCC Data'!$C$32) -> 3/8 in
A38: 36 | B38: =IF('RCC Data'!$K$33="","",'RCC Data'!$K$33) ->  | C38: =IF( 'RCC Data'!$C$26="","", 'RCC Data'!$C$26) -> RCC Combined Aggregate Gradation for | D38: =IF('RCC Data'!$K$27="","",'RCC Data'!$K$27) -> Within Master Grading | E38: =IF('RCC Data'!$C$27="","",'RCC Data'!$C$27) -> Sieve Size | F38: =IF('RCC Data'!$C$33="","",'RCC Data'!$C$33) -> No. 4
A39: 37 | B39: =IF('RCC Data'!$K$34="","",'RCC Data'!$K$34) ->  | C39: =IF( 'RCC Data'!$C$26="","", 'RCC Data'!$C$26) -> RCC Combined Aggregate Gradation for | D39: =IF('RCC Data'!$K$27="","",'RCC Data'!$K$27) -> Within Master Grading | E39: =IF('RCC Data'!$C$27="","",'RCC Data'!$C$27) -> Sieve Size | F39: =IF('RCC Data'!$C$34="","",'RCC Data'!$C$34) -> No. 16
A40: 38 | B40: =IF('RCC Data'!$K$35="","",'RCC Data'!$K$35) ->  | C40: =IF( 'RCC Data'!$C$26="","", 'RCC Data'!$C$26) -> RCC Combined Aggregate Gradation for | D40: =IF('RCC Data'!$K$27="","",'RCC Data'!$K$27) -> Within Master Grading | E40: =IF('RCC Data'!$C$27="","",'RCC Data'!$C$27) -> Sieve Size | F40: =IF('RCC Data'!$C$35="","",'RCC Data'!$C$35) -> No. 100
A41: 39 | B41: =IF('RCC Data'!$K$36="","",'RCC Data'!$K$36) ->  | C41: =IF( 'RCC Data'!$C$26="","", 'RCC Data'!$C$26) -> RCC Combined Aggregate Gradation for | D41: =IF('RCC Data'!$K$27="","",'RCC Data'!$K$27) -> Within Master Grading | E41: =IF('RCC Data'!$C$27="","",'RCC Data'!$C$27) -> Sieve Size | F41: =IF('RCC Data'!$C$36="","",'RCC Data'!$C$36) -> No. 200
A42: 40 | B42: =IF('RCC Data'!$F$42="","",'RCC Data'!$F$42) ->  | C42: =IF( 'RCC Data'!$C$41="","", 'RCC Data'!$C$41) -> Estimated Cementitious Content | D42: =IF('RCC Data'!$C$42="","",'RCC Data'!$C$42) -> Optimum (A):
A43: 41 | B43: =IF('RCC Data'!$F$43="","",'RCC Data'!$F$43) ->  | C43: =IF( 'RCC Data'!$C$41="","", 'RCC Data'!$C$41) -> Estimated Cementitious Content | D43: =IF('RCC Data'!$C$43="","",'RCC Data'!$C$43) -> Below Optimum (B):
A44: 42 | B44: =IF('RCC Data'!$F$44="","",'RCC Data'!$F$44) ->  | C44: =IF( 'RCC Data'!$C$41="","", 'RCC Data'!$C$41) -> Estimated Cementitious Content | D44: =IF('RCC Data'!$C$44="","",'RCC Data'!$C$44) -> Above Optimum (C):
A45: 43 | B45: =IF('RCC Data'!$F$50="","",'RCC Data'!$F$50) ->  | C45: =IF( 'RCC Data'!$C$49="","", 'RCC Data'!$C$49) -> Moisture-Denisty Curve Label | D45: =IF('RCC Data'!$F$49="","",'RCC Data'!$F$49) -> Cementitious Content | E45: =IF('RCC Data'!$C$50="","",'RCC Data'!$C$50) -> Optimum (A):
A46: 44 | B46: =IF('RCC Data'!$F$51="","",'RCC Data'!$F$51) ->  | C46: =IF( 'RCC Data'!$C$49="","", 'RCC Data'!$C$49) -> Moisture-Denisty Curve Label | D46: =IF('RCC Data'!$F$49="","",'RCC Data'!$F$49) -> Cementitious Content | E46: =IF('RCC Data'!$C$51="","",'RCC Data'!$C$51) -> Below Optimum (B):
A47: 45 | B47: =IF('RCC Data'!$F$52="","",'RCC Data'!$F$52) ->  | C47: =IF( 'RCC Data'!$C$49="","", 'RCC Data'!$C$49) -> Moisture-Denisty Curve Label | D47: =IF('RCC Data'!$F$49="","",'RCC Data'!$F$49) -> Cementitious Content | E47: =IF('RCC Data'!$C$52="","",'RCC Data'!$C$52) -> Above Optimum (C):
A48: 46 | B48: =IF('RCC Data'!$H$50="","",'RCC Data'!$H$50) -> 6.2 | C48: =IF( 'RCC Data'!$C$49="","", 'RCC Data'!$C$49) -> Moisture-Denisty Curve Label | D48: =IF('RCC Data'!$H$49="","",'RCC Data'!$H$49) -> Optimum Moisture Content % | E48: =IF('RCC Data'!$C$50="","",'RCC Data'!$C$50) -> Optimum (A):
A49: 47 | B49: =IF('RCC Data'!$H$51="","",'RCC Data'!$H$51) -> 5.8 | C49: =IF( 'RCC Data'!$C$49="","", 'RCC Data'!$C$49) -> Moisture-Denisty Curve Label | D49: =IF('RCC Data'!$H$49="","",'RCC Data'!$H$49) -> Optimum Moisture Content % | E49: =IF('RCC Data'!$C$51="","",'RCC Data'!$C$51) -> Below Optimum (B):
A50: 48 | B50: =IF('RCC Data'!$H$52="","",'RCC Data'!$H$52) -> 6 | C50: =IF( 'RCC Data'!$C$49="","", 'RCC Data'!$C$49) -> Moisture-Denisty Curve Label | D50: =IF('RCC Data'!$H$49="","",'RCC Data'!$H$49) -> Optimum Moisture Content % | E50: =IF('RCC Data'!$C$52="","",'RCC Data'!$C$52) -> Above Optimum (C):
A51: 49 | B51: =IF('RCC Data'!$H$58="","",'RCC Data'!$H$58) -> 6.2 | C51: =IF( 'RCC Data'!$C$57="","", 'RCC Data'!$C$57) -> Moisture-Denisty Curve Label | D51: =IF('RCC Data'!$C$58="","",'RCC Data'!$C$58) -> Optimum (A): | E51: =IF('RCC Data'!$F$49="","",'RCC Data'!$F$49) -> Cementitious Content | F51: =IF('RCC Data'!$F$57="","",'RCC Data'!$F$57) -> Sample No. | G51: =IF('RCC Data'!$F$58="","",'RCC Data'!$F$58) -> A1
A52: 50 | B52: =IF('RCC Data'!$H$59="","",'RCC Data'!$H$59) -> 6.2 | C52: =IF( 'RCC Data'!$C$57="","", 'RCC Data'!$C$57) -> Moisture-Denisty Curve Label | D52: =IF('RCC Data'!$C$58="","",'RCC Data'!$C$58) -> Optimum (A): | E52: =IF('RCC Data'!$F$49="","",'RCC Data'!$F$49) -> Cementitious Content | F52: =IF('RCC Data'!$F$57="","",'RCC Data'!$F$57) -> Sample No. | G52: =IF('RCC Data'!$F$59="","",'RCC Data'!$F$59) -> A2
A53: 51 | B53: =IF('RCC Data'!$H$60="","",'RCC Data'!$H$60) -> 6.2 | C53: =IF( 'RCC Data'!$C$57="","", 'RCC Data'!$C$57) -> Moisture-Denisty Curve Label | D53: =IF('RCC Data'!$C$58="","",'RCC Data'!$C$58) -> Optimum (A): | E53: =IF('RCC Data'!$F$49="","",'RCC Data'!$F$49) -> Cementitious Content | F53: =IF('RCC Data'!$F$57="","",'RCC Data'!$F$57) -> Sample No. | G53: =IF('RCC Data'!$F$60="","",'RCC Data'!$F$60) -> A3
A54: 52 | B54: =IF('RCC Data'!$H$61="","",'RCC Data'!$H$61) -> 5.8 | C54: =IF( 'RCC Data'!$C$57="","", 'RCC Data'!$C$57) -> Moisture-Denisty Curve Label | D54: =IF('RCC Data'!$C$61="","",'RCC Data'!$C$61) -> Below Optimum (B): | E54: =IF('RCC Data'!$F$49="","",'RCC Data'!$F$49) -> Cementitious Content | F54: =IF('RCC Data'!$F$57="","",'RCC Data'!$F$57) -> Sample No. | G54: =IF('RCC Data'!$F$61="","",'RCC Data'!$F$61) -> B1
A55: 53 | B55: =IF('RCC Data'!$H$62="","",'RCC Data'!$H$62) -> 5.8 | C55: =IF( 'RCC Data'!$C$57="","", 'RCC Data'!$C$57) -> Moisture-Denisty Curve Label | D55: =IF('RCC Data'!$C$61="","",'RCC Data'!$C$61) -> Below Optimum (B): | E55: =IF('RCC Data'!$F$49="","",'RCC Data'!$F$49) -> Cementitious Content | F55: =IF('RCC Data'!$F$57="","",'RCC Data'!$F$57) -> Sample No. | G55: =IF('RCC Data'!$F$62="","",'RCC Data'!$F$62) -> B2
A56: 54 | B56: =IF('RCC Data'!$H$63="","",'RCC Data'!$H$63) -> 5.8 | C56: =IF( 'RCC Data'!$C$57="","", 'RCC Data'!$C$57) -> Moisture-Denisty Curve Label | D56: =IF('RCC Data'!$C$61="","",'RCC Data'!$C$61) -> Below Optimum (B): | E56: =IF('RCC Data'!$F$49="","",'RCC Data'!$F$49) -> Cementitious Content | F56: =IF('RCC Data'!$F$57="","",'RCC Data'!$F$57) -> Sample No. | G56: =IF('RCC Data'!$F$63="","",'RCC Data'!$F$63) -> B3
A57: 55 | B57: =IF('RCC Data'!$H$64="","",'RCC Data'!$H$64) -> 6 | C57: =IF( 'RCC Data'!$C$57="","", 'RCC Data'!$C$57) -> Moisture-Denisty Curve Label | D57: =IF('RCC Data'!$C$64="","",'RCC Data'!$C$64) -> Above Optimum (C): | E57: =IF('RCC Data'!$F$49="","",'RCC Data'!$F$49) -> Cementitious Content | F57: =IF('RCC Data'!$F$57="","",'RCC Data'!$F$57) -> Sample No. | G57: =IF('RCC Data'!$F$64="","",'RCC Data'!$F$64) -> C1
A58: 56 | B58: =IF('RCC Data'!$H$65="","",'RCC Data'!$H$65) -> 6 | C58: =IF( 'RCC Data'!$C$57="","", 'RCC Data'!$C$57) -> Moisture-Denisty Curve Label | D58: =IF('RCC Data'!$C$64="","",'RCC Data'!$C$64) -> Above Optimum (C): | E58: =IF('RCC Data'!$F$49="","",'RCC Data'!$F$49) -> Cementitious Content | F58: =IF('RCC Data'!$F$57="","",'RCC Data'!$F$57) -> Sample No. | G58: =IF('RCC Data'!$F$65="","",'RCC Data'!$F$65) -> C2
A59: 57 | B59: =IF('RCC Data'!$H$66="","",'RCC Data'!$H$66) -> 6 | C59: =IF( 'RCC Data'!$C$57="","", 'RCC Data'!$C$57) -> Moisture-Denisty Curve Label | D59: =IF('RCC Data'!$C$64="","",'RCC Data'!$C$64) -> Above Optimum (C): | E59: =IF('RCC Data'!$F$49="","",'RCC Data'!$F$49) -> Cementitious Content | F59: =IF('RCC Data'!$F$57="","",'RCC Data'!$F$57) -> Sample No. | G59: =IF('RCC Data'!$F$66="","",'RCC Data'!$F$66) -> C3
A60: 58 | B60: =IF('RCC Data'!$H$71="","",'RCC Data'!$H$71) ->  | C60: =IF( 'RCC Data'!$C$70="","", 'RCC Data'!$C$70) -> Moisture-Denisty Curve Label | D60: =IF('RCC Data'!$C$71="","",'RCC Data'!$C$71) -> Optimum (A): | E60: =IF('RCC Data'!$F$49="","",'RCC Data'!$F$49) -> Cementitious Content | F60: =IF('RCC Data'!$F$70="","",'RCC Data'!$F$70) -> Sample No. | G60: =IF('RCC Data'!$F$71="","",'RCC Data'!$F$71) -> A1
A61: 59 | B61: =IF('RCC Data'!$H$72="","",'RCC Data'!$H$72) ->  | C61: =IF( 'RCC Data'!$C$70="","", 'RCC Data'!$C$70) -> Moisture-Denisty Curve Label | D61: =IF('RCC Data'!$C$71="","",'RCC Data'!$C$71) -> Optimum (A): | E61: =IF('RCC Data'!$F$49="","",'RCC Data'!$F$49) -> Cementitious Content | F61: =IF('RCC Data'!$F$70="","",'RCC Data'!$F$70) -> Sample No. | G61: =IF('RCC Data'!$F$72="","",'RCC Data'!$F$72) -> A2
A62: 60 | B62: =IF('RCC Data'!$H$73="","",'RCC Data'!$H$73) ->  | C62: =IF( 'RCC Data'!$C$70="","", 'RCC Data'!$C$70) -> Moisture-Denisty Curve Label | D62: =IF('RCC Data'!$C$71="","",'RCC Data'!$C$71) -> Optimum (A): | E62: =IF('RCC Data'!$F$49="","",'RCC Data'!$F$49) -> Cementitious Content | F62: =IF('RCC Data'!$F$70="","",'RCC Data'!$F$70) -> Sample No. | G62: =IF('RCC Data'!$F$73="","",'RCC Data'!$F$73) -> A3
A63: 61 | B63: =IF('RCC Data'!$H$74="","",'RCC Data'!$H$74) ->  | C63: =IF( 'RCC Data'!$C$70="","", 'RCC Data'!$C$70) -> Moisture-Denisty Curve Label | D63: =IF('RCC Data'!$C$74="","",'RCC Data'!$C$74) -> Below Optimum (B): | E63: =IF('RCC Data'!$F$49="","",'RCC Data'!$F$49) -> Cementitious Content | F63: =IF('RCC Data'!$F$70="","",'RCC Data'!$F$70) -> Sample No. | G63: =IF('RCC Data'!$F$74="","",'RCC Data'!$F$74) -> B1
A64: 62 | B64: =IF('RCC Data'!$H$75="","",'RCC Data'!$H$75) ->  | C64: =IF( 'RCC Data'!$C$70="","", 'RCC Data'!$C$70) -> Moisture-Denisty Curve Label | D64: =IF('RCC Data'!$C$74="","",'RCC Data'!$C$74) -> Below Optimum (B): | E64: =IF('RCC Data'!$F$49="","",'RCC Data'!$F$49) -> Cementitious Content | F64: =IF('RCC Data'!$F$70="","",'RCC Data'!$F$70) -> Sample No. | G64: =IF('RCC Data'!$F$75="","",'RCC Data'!$F$75) -> B2
A65: 63 | B65: =IF('RCC Data'!$H$76="","",'RCC Data'!$H$76) ->  | C65: =IF( 'RCC Data'!$C$70="","", 'RCC Data'!$C$70) -> Moisture-Denisty Curve Label | D65: =IF('RCC Data'!$C$74="","",'RCC Data'!$C$74) -> Below Optimum (B): | E65: =IF('RCC Data'!$F$49="","",'RCC Data'!$F$49) -> Cementitious Content | F65: =IF('RCC Data'!$F$70="","",'RCC Data'!$F$70) -> Sample No. | G65: =IF('RCC Data'!$F$76="","",'RCC Data'!$F$76) -> B3
A66: 64 | B66: =IF('RCC Data'!$H$77="","",'RCC Data'!$H$77) ->  | C66: =IF( 'RCC Data'!$C$70="","", 'RCC Data'!$C$70) -> Moisture-Denisty Curve Label | D66: =IF('RCC Data'!$C$77="","",'RCC Data'!$C$77) -> Above Optimum (C): | E66: =IF('RCC Data'!$F$49="","",'RCC Data'!$F$49) -> Cementitious Content | F66: =IF('RCC Data'!$F$70="","",'RCC Data'!$F$70) -> Sample No. | G66: =IF('RCC Data'!$F$77="","",'RCC Data'!$F$77) -> C1
A67: 65 | B67: =IF('RCC Data'!$H$78="","",'RCC Data'!$H$78) ->  | C67: =IF( 'RCC Data'!$C$70="","", 'RCC Data'!$C$70) -> Moisture-Denisty Curve Label | D67: =IF('RCC Data'!$C$77="","",'RCC Data'!$C$77) -> Above Optimum (C): | E67: =IF('RCC Data'!$F$49="","",'RCC Data'!$F$49) -> Cementitious Content | F67: =IF('RCC Data'!$F$70="","",'RCC Data'!$F$70) -> Sample No. | G67: =IF('RCC Data'!$F$78="","",'RCC Data'!$F$78) -> C2
A68: 66 | B68: =IF('RCC Data'!$H$79="","",'RCC Data'!$H$79) ->  | C68: =IF( 'RCC Data'!$C$70="","", 'RCC Data'!$C$70) -> Moisture-Denisty Curve Label | D68: =IF('RCC Data'!$C$77="","",'RCC Data'!$C$77) -> Above Optimum (C): | E68: =IF('RCC Data'!$F$49="","",'RCC Data'!$F$49) -> Cementitious Content | F68: =IF('RCC Data'!$F$70="","",'RCC Data'!$F$70) -> Sample No. | G68: =IF('RCC Data'!$F$79="","",'RCC Data'!$F$79) -> C3
A69: 67 | B69: =IF('RCC Data'!$J$71="","",'RCC Data'!$J$71) -> 6.2 | C69: =IF( 'RCC Data'!$C$70="","", 'RCC Data'!$C$70) -> Moisture-Denisty Curve Label | D69: =IF('RCC Data'!$C$71="","",'RCC Data'!$C$71) -> Optimum (A): | E69: =IF('RCC Data'!$F$49="","",'RCC Data'!$F$49) -> Cementitious Content | F69: =IF('RCC Data'!$F$70="","",'RCC Data'!$F$70) -> Sample No. | G69: =IF('RCC Data'!$F$71="","",'RCC Data'!$F$71) -> A1
A70: 68 | B70: =IF('RCC Data'!$J$72="","",'RCC Data'!$J$72) -> 6.2 | C70: =IF( 'RCC Data'!$C$70="","", 'RCC Data'!$C$70) -> Moisture-Denisty Curve Label | D70: =IF('RCC Data'!$C$71="","",'RCC Data'!$C$71) -> Optimum (A): | E70: =IF('RCC Data'!$F$49="","",'RCC Data'!$F$49) -> Cementitious Content | F70: =IF('RCC Data'!$F$70="","",'RCC Data'!$F$70) -> Sample No. | G70: =IF('RCC Data'!$F$72="","",'RCC Data'!$F$72) -> A2
A71: 69 | B71: =IF('RCC Data'!$J$73="","",'RCC Data'!$J$73) -> 6.2 | C71: =IF( 'RCC Data'!$C$70="","", 'RCC Data'!$C$70) -> Moisture-Denisty Curve Label | D71: =IF('RCC Data'!$C$71="","",'RCC Data'!$C$71) -> Optimum (A): | E71: =IF('RCC Data'!$F$49="","",'RCC Data'!$F$49) -> Cementitious Content | F71: =IF('RCC Data'!$F$70="","",'RCC Data'!$F$70) -> Sample No. | G71: =IF('RCC Data'!$F$73="","",'RCC Data'!$F$73) -> A3
A72: 70 | B72: =IF('RCC Data'!$J$74="","",'RCC Data'!$J$74) -> 5.8 | C72: =IF( 'RCC Data'!$C$70="","", 'RCC Data'!$C$70) -> Moisture-Denisty Curve Label | D72: =IF('RCC Data'!$C$74="","",'RCC Data'!$C$74) -> Below Optimum (B): | E72: =IF('RCC Data'!$F$49="","",'RCC Data'!$F$49) -> Cementitious Content | F72: =IF('RCC Data'!$F$70="","",'RCC Data'!$F$70) -> Sample No. | G72: =IF('RCC Data'!$F$74="","",'RCC Data'!$F$74) -> B1
A73: 71 | B73: =IF('RCC Data'!$J$75="","",'RCC Data'!$J$75) -> 5.8 | C73: =IF( 'RCC Data'!$C$70="","", 'RCC Data'!$C$70) -> Moisture-Denisty Curve Label | D73: =IF('RCC Data'!$C$74="","",'RCC Data'!$C$74) -> Below Optimum (B): | E73: =IF('RCC Data'!$F$49="","",'RCC Data'!$F$49) -> Cementitious Content | F73: =IF('RCC Data'!$F$70="","",'RCC Data'!$F$70) -> Sample No. | G73: =IF('RCC Data'!$F$75="","",'RCC Data'!$F$75) -> B2
A74: 72 | B74: =IF('RCC Data'!$J$76="","",'RCC Data'!$J$76) -> 5.8 | C74: =IF( 'RCC Data'!$C$70="","", 'RCC Data'!$C$70) -> Moisture-Denisty Curve Label | D74: =IF('RCC Data'!$C$74="","",'RCC Data'!$C$74) -> Below Optimum (B): | E74: =IF('RCC Data'!$F$49="","",'RCC Data'!$F$49) -> Cementitious Content | F74: =IF('RCC Data'!$F$70="","",'RCC Data'!$F$70) -> Sample No. | G74: =IF('RCC Data'!$F$76="","",'RCC Data'!$F$76) -> B3
A75: 73 | B75: =IF('RCC Data'!$J$77="","",'RCC Data'!$J$77) -> 6 | C75: =IF( 'RCC Data'!$C$70="","", 'RCC Data'!$C$70) -> Moisture-Denisty Curve Label | D75: =IF('RCC Data'!$C$77="","",'RCC Data'!$C$77) -> Above Optimum (C): | E75: =IF('RCC Data'!$F$49="","",'RCC Data'!$F$49) -> Cementitious Content | F75: =IF('RCC Data'!$F$70="","",'RCC Data'!$F$70) -> Sample No. | G75: =IF('RCC Data'!$F$77="","",'RCC Data'!$F$77) -> C1
A76: 74 | B76: =IF('RCC Data'!$J$78="","",'RCC Data'!$J$78) -> 6 | C76: =IF( 'RCC Data'!$C$70="","", 'RCC Data'!$C$70) -> Moisture-Denisty Curve Label | D76: =IF('RCC Data'!$C$77="","",'RCC Data'!$C$77) -> Above Optimum (C): | E76: =IF('RCC Data'!$F$49="","",'RCC Data'!$F$49) -> Cementitious Content | F76: =IF('RCC Data'!$F$70="","",'RCC Data'!$F$70) -> Sample No. | G76: =IF('RCC Data'!$F$78="","",'RCC Data'!$F$78) -> C2
A77: 75 | B77: =IF('RCC Data'!$J$79="","",'RCC Data'!$J$79) -> 6 | C77: =IF( 'RCC Data'!$C$70="","", 'RCC Data'!$C$70) -> Moisture-Denisty Curve Label | D77: =IF('RCC Data'!$C$77="","",'RCC Data'!$C$77) -> Above Optimum (C): | E77: =IF('RCC Data'!$F$49="","",'RCC Data'!$F$49) -> Cementitious Content | F77: =IF('RCC Data'!$F$70="","",'RCC Data'!$F$70) -> Sample No. | G77: =IF('RCC Data'!$F$79="","",'RCC Data'!$F$79) -> C3
A78: 76 | B78: =IF('RCC Data'!$L$71="","",'RCC Data'!$L$71) ->  | C78: =IF( 'RCC Data'!$C$70="","", 'RCC Data'!$C$70) -> Moisture-Denisty Curve Label | D78: =IF('RCC Data'!$C$71="","",'RCC Data'!$C$71) -> Optimum (A): | E78: =IF('RCC Data'!$F$49="","",'RCC Data'!$F$49) -> Cementitious Content | F78: =IF('RCC Data'!$F$70="","",'RCC Data'!$F$70) -> Sample No. | G78: =IF('RCC Data'!$F$71="","",'RCC Data'!$F$71) -> A1
A79: 77 | B79: =IF('RCC Data'!$L$72="","",'RCC Data'!$L$72) ->  | C79: =IF( 'RCC Data'!$C$70="","", 'RCC Data'!$C$70) -> Moisture-Denisty Curve Label | D79: =IF('RCC Data'!$C$71="","",'RCC Data'!$C$71) -> Optimum (A): | E79: =IF('RCC Data'!$F$49="","",'RCC Data'!$F$49) -> Cementitious Content | F79: =IF('RCC Data'!$F$70="","",'RCC Data'!$F$70) -> Sample No. | G79: =IF('RCC Data'!$F$72="","",'RCC Data'!$F$72) -> A2
A80: 78 | B80: =IF('RCC Data'!$L$73="","",'RCC Data'!$L$73) ->  | C80: =IF( 'RCC Data'!$C$70="","", 'RCC Data'!$C$70) -> Moisture-Denisty Curve Label | D80: =IF('RCC Data'!$C$71="","",'RCC Data'!$C$71) -> Optimum (A): | E80: =IF('RCC Data'!$F$49="","",'RCC Data'!$F$49) -> Cementitious Content | F80: =IF('RCC Data'!$F$70="","",'RCC Data'!$F$70) -> Sample No. | G80: =IF('RCC Data'!$F$73="","",'RCC Data'!$F$73) -> A3
A81: 79 | B81: =IF('RCC Data'!$L$74="","",'RCC Data'!$L$74) ->  | C81: =IF( 'RCC Data'!$C$70="","", 'RCC Data'!$C$70) -> Moisture-Denisty Curve Label | D81: =IF('RCC Data'!$C$74="","",'RCC Data'!$C$74) -> Below Optimum (B): | E81: =IF('RCC Data'!$F$49="","",'RCC Data'!$F$49) -> Cementitious Content | F81: =IF('RCC Data'!$F$70="","",'RCC Data'!$F$70) -> Sample No. | G81: =IF('RCC Data'!$F$74="","",'RCC Data'!$F$74) -> B1
A82: 80 | B82: =IF('RCC Data'!$L$75="","",'RCC Data'!$L$75) ->  | C82: =IF( 'RCC Data'!$C$70="","", 'RCC Data'!$C$70) -> Moisture-Denisty Curve Label | D82: =IF('RCC Data'!$C$74="","",'RCC Data'!$C$74) -> Below Optimum (B): | E82: =IF('RCC Data'!$F$49="","",'RCC Data'!$F$49) -> Cementitious Content | F82: =IF('RCC Data'!$F$70="","",'RCC Data'!$F$70) -> Sample No. | G82: =IF('RCC Data'!$F$75="","",'RCC Data'!$F$75) -> B2
A83: 81 | B83: =IF('RCC Data'!$L$76="","",'RCC Data'!$L$76) ->  | C83: =IF( 'RCC Data'!$C$70="","", 'RCC Data'!$C$70) -> Moisture-Denisty Curve Label | D83: =IF('RCC Data'!$C$74="","",'RCC Data'!$C$74) -> Below Optimum (B): | E83: =IF('RCC Data'!$F$49="","",'RCC Data'!$F$49) -> Cementitious Content | F83: =IF('RCC Data'!$F$70="","",'RCC Data'!$F$70) -> Sample No. | G83: =IF('RCC Data'!$F$76="","",'RCC Data'!$F$76) -> B3
A84: 82 | B84: =IF('RCC Data'!$L$77="","",'RCC Data'!$L$77) ->  | C84: =IF( 'RCC Data'!$C$70="","", 'RCC Data'!$C$70) -> Moisture-Denisty Curve Label | D84: =IF('RCC Data'!$C$77="","",'RCC Data'!$C$77) -> Above Optimum (C): | E84: =IF('RCC Data'!$F$49="","",'RCC Data'!$F$49) -> Cementitious Content | F84: =IF('RCC Data'!$F$70="","",'RCC Data'!$F$70) -> Sample No. | G84: =IF('RCC Data'!$F$77="","",'RCC Data'!$F$77) -> C1
A85: 83 | B85: =IF('RCC Data'!$L$78="","",'RCC Data'!$L$78) ->  | C85: =IF( 'RCC Data'!$C$70="","", 'RCC Data'!$C$70) -> Moisture-Denisty Curve Label | D85: =IF('RCC Data'!$C$77="","",'RCC Data'!$C$77) -> Above Optimum (C): | E85: =IF('RCC Data'!$F$49="","",'RCC Data'!$F$49) -> Cementitious Content | F85: =IF('RCC Data'!$F$70="","",'RCC Data'!$F$70) -> Sample No. | G85: =IF('RCC Data'!$F$78="","",'RCC Data'!$F$78) -> C2
A86: 84 | B86: =IF('RCC Data'!$L$79="","",'RCC Data'!$L$79) ->  | C86: =IF( 'RCC Data'!$C$70="","", 'RCC Data'!$C$70) -> Moisture-Denisty Curve Label | D86: =IF('RCC Data'!$C$77="","",'RCC Data'!$C$77) -> Above Optimum (C): | E86: =IF('RCC Data'!$F$49="","",'RCC Data'!$F$49) -> Cementitious Content | F86: =IF('RCC Data'!$F$70="","",'RCC Data'!$F$70) -> Sample No. | G86: =IF('RCC Data'!$F$79="","",'RCC Data'!$F$79) -> C3
A87: 85 | B87: =IF('RCC Data'!$N$71="","",'RCC Data'!$N$71) ->  | C87: =IF( 'RCC Data'!$C$70="","", 'RCC Data'!$C$70) -> Moisture-Denisty Curve Label | D87: =IF('RCC Data'!$C$71="","",'RCC Data'!$C$71) -> Optimum (A): | E87: =IF('RCC Data'!$F$49="","",'RCC Data'!$F$49) -> Cementitious Content | F87: =IF('RCC Data'!$F$70="","",'RCC Data'!$F$70) -> Sample No. | G87: =IF('RCC Data'!$F$71="","",'RCC Data'!$F$71) -> A1
A88: 86 | B88: =IF('RCC Data'!$N$74="","",'RCC Data'!$N$74) ->  | C88: =IF( 'RCC Data'!$C$70="","", 'RCC Data'!$C$70) -> Moisture-Denisty Curve Label | D88: =IF('RCC Data'!$C$74="","",'RCC Data'!$C$74) -> Below Optimum (B): | E88: =IF('RCC Data'!$F$49="","",'RCC Data'!$F$49) -> Cementitious Content | F88: =IF('RCC Data'!$F$70="","",'RCC Data'!$F$70) -> Sample No. | G88: =IF('RCC Data'!$F$74="","",'RCC Data'!$F$74) -> B1
A89: 87 | B89: =IF('RCC Data'!$N$77="","",'RCC Data'!$N$77) ->  | C89: =IF( 'RCC Data'!$C$70="","", 'RCC Data'!$C$70) -> Moisture-Denisty Curve Label | D89: =IF('RCC Data'!$C$77="","",'RCC Data'!$C$77) -> Above Optimum (C): | E89: =IF('RCC Data'!$F$49="","",'RCC Data'!$F$49) -> Cementitious Content | F89: =IF('RCC Data'!$F$70="","",'RCC Data'!$F$70) -> Sample No. | G89: =IF('RCC Data'!$F$77="","",'RCC Data'!$F$77) -> C1
A90: 88 | B90: =IF('RCC Data'!$P$71="","",'RCC Data'!$P$71) ->  | C90: =IF( 'RCC Data'!$C$70="","", 'RCC Data'!$C$70) -> Moisture-Denisty Curve Label | D90: =IF('RCC Data'!$C$71="","",'RCC Data'!$C$71) -> Optimum (A): | E90: =IF('RCC Data'!$F$49="","",'RCC Data'!$F$49) -> Cementitious Content | F90: =IF('RCC Data'!$F$70="","",'RCC Data'!$F$70) -> Sample No. | G90: =IF('RCC Data'!$F$71="","",'RCC Data'!$F$71) -> A1
A91: 89 | B91: =IF('RCC Data'!$P$74="","",'RCC Data'!$P$74) ->  | C91: =IF( 'RCC Data'!$C$70="","", 'RCC Data'!$C$70) -> Moisture-Denisty Curve Label | D91: =IF('RCC Data'!$C$74="","",'RCC Data'!$C$74) -> Below Optimum (B): | E91: =IF('RCC Data'!$F$49="","",'RCC Data'!$F$49) -> Cementitious Content | F91: =IF('RCC Data'!$F$70="","",'RCC Data'!$F$70) -> Sample No. | G91: =IF('RCC Data'!$F$74="","",'RCC Data'!$F$74) -> B1
A92: 90 | B92: =IF('RCC Data'!$P$77="","",'RCC Data'!$P$77) ->  | C92: =IF( 'RCC Data'!$C$70="","", 'RCC Data'!$C$70) -> Moisture-Denisty Curve Label | D92: =IF('RCC Data'!$C$77="","",'RCC Data'!$C$77) -> Above Optimum (C): | E92: =IF('RCC Data'!$F$49="","",'RCC Data'!$F$49) -> Cementitious Content | F92: =IF('RCC Data'!$F$70="","",'RCC Data'!$F$70) -> Sample No. | G92: =IF('RCC Data'!$F$77="","",'RCC Data'!$F$77) -> C1
A93: 91 | B93: =IF('ASTM 1557'!$D$22="","",'ASTM 1557'!$D$22) ->  | C93: =IF( 'ASTM 1557'!$B$6="","", 'ASTM 1557'!$B$6) -> ASTM D1557 | D93: =IF('ASTM 1557'!$B$22="","",'ASTM 1557'!$B$22) -> Oven Dry Weight, (g):
A94: 92 | B94: =IF('ASTM 1557'!$D$23="","",'ASTM 1557'!$D$23) ->  | C94: =IF( 'ASTM 1557'!$B$6="","", 'ASTM 1557'!$B$6) -> ASTM D1557 | D94: =IF('ASTM 1557'!$B$23="","",'ASTM 1557'!$B$23) -> Weight of Pycnometer & Water, (g):
A95: 93 | B95: =IF('ASTM 1557'!$D$24="","",'ASTM 1557'!$D$24) ->  | C95: =IF( 'ASTM 1557'!$B$6="","", 'ASTM 1557'!$B$6) -> ASTM D1557 | D95: =IF('ASTM 1557'!$B$24="","",'ASTM 1557'!$B$24) -> Weight of Aggr., Pycn.& Water, (g):
A96: 94 | B96: =IF('ASTM 1557'!$D$25="","",'ASTM 1557'!$D$25) ->  | C96: =IF( 'ASTM 1557'!$B$6="","", 'ASTM 1557'!$B$6) -> ASTM D1557 | D96: =IF('ASTM 1557'!$B$25="","",'ASTM 1557'!$B$25) -> Specific Gravity (Apparent)(Override):
A97: 95 | B97: =IF('ASTM 1557'!$D$26="","",'ASTM 1557'!$D$26) -> 2.65 | C97: =IF( 'ASTM 1557'!$B$6="","", 'ASTM 1557'!$B$6) -> ASTM D1557 | D97: =IF('ASTM 1557'!$B$26="","",'ASTM 1557'!$B$26) -> Specific Gravity (Apparent)(Calc):
A98: 96 | B98: =IF('ASTM 1557'!$D$28="","",'ASTM 1557'!$D$28) ->  | C98: =IF( 'ASTM 1557'!$B$6="","", 'ASTM 1557'!$B$6) -> ASTM D1557 | D98: =IF('ASTM 1557'!$B$28="","",'ASTM 1557'!$B$28) -> Hygroscopic Moisture, (%):
A99: 97 | B99: =IF('ASTM 1557'!$D$32="","",'ASTM 1557'!$D$32) -> % - 1 | C99: =IF( 'ASTM 1557'!$B$6="","", 'ASTM 1557'!$B$6) -> ASTM D1557 | D99: =IF('ASTM 1557'!$B$32="","",'ASTM 1557'!$B$32) -> Sample Number : | E99: =IF('ASTM 1557'!$D$30="","",'ASTM 1557'!$D$30) -> 1-1
A100: 98 | B100: =IF('ASTM 1557'!$E$32="","",'ASTM 1557'!$E$32) -> % - 2 | C100: =IF( 'ASTM 1557'!$B$6="","", 'ASTM 1557'!$B$6) -> ASTM D1557 | D100: =IF('ASTM 1557'!$B$32="","",'ASTM 1557'!$B$32) -> Sample Number : | E100: =IF('ASTM 1557'!$E$30="","",'ASTM 1557'!$E$30) -> 1-2
A101: 99 | B101: =IF('ASTM 1557'!$F$32="","",'ASTM 1557'!$F$32) -> % - 3 | C101: =IF( 'ASTM 1557'!$B$6="","", 'ASTM 1557'!$B$6) -> ASTM D1557 | D101: =IF('ASTM 1557'!$B$32="","",'ASTM 1557'!$B$32) -> Sample Number : | E101: =IF('ASTM 1557'!$F$30="","",'ASTM 1557'!$F$30) -> 1-3
A102: 100 | B102: =IF('ASTM 1557'!$G$32="","",'ASTM 1557'!$G$32) -> % - 4 | C102: =IF( 'ASTM 1557'!$B$6="","", 'ASTM 1557'!$B$6) -> ASTM D1557 | D102: =IF('ASTM 1557'!$B$32="","",'ASTM 1557'!$B$32) -> Sample Number : | E102: =IF('ASTM 1557'!$G$30="","",'ASTM 1557'!$G$30) -> 1-4
A103: 101 | B103: =IF('ASTM 1557'!$I$32="","",'ASTM 1557'!$I$32) -> % - 1 | C103: =IF( 'ASTM 1557'!$B$6="","", 'ASTM 1557'!$B$6) -> ASTM D1557 | D103: =IF('ASTM 1557'!$B$32="","",'ASTM 1557'!$B$32) -> Sample Number : | E103: =IF('ASTM 1557'!$I$30="","",'ASTM 1557'!$I$30) -> 2-1
A104: 102 | B104: =IF('ASTM 1557'!$J$32="","",'ASTM 1557'!$J$32) -> % - 2 | C104: =IF( 'ASTM 1557'!$B$6="","", 'ASTM 1557'!$B$6) -> ASTM D1557 | D104: =IF('ASTM 1557'!$B$32="","",'ASTM 1557'!$B$32) -> Sample Number : | E104: =IF('ASTM 1557'!$J$30="","",'ASTM 1557'!$J$30) -> 2-2
A105: 103 | B105: =IF('ASTM 1557'!$K$32="","",'ASTM 1557'!$K$32) -> % - 3 | C105: =IF( 'ASTM 1557'!$B$6="","", 'ASTM 1557'!$B$6) -> ASTM D1557 | D105: =IF('ASTM 1557'!$B$32="","",'ASTM 1557'!$B$32) -> Sample Number : | E105: =IF('ASTM 1557'!$K$30="","",'ASTM 1557'!$K$30) -> 2-3
A106: 104 | B106: =IF('ASTM 1557'!$L$32="","",'ASTM 1557'!$L$32) -> % - 4 | C106: =IF( 'ASTM 1557'!$B$6="","", 'ASTM 1557'!$B$6) -> ASTM D1557 | D106: =IF('ASTM 1557'!$B$32="","",'ASTM 1557'!$B$32) -> Sample Number : | E106: =IF('ASTM 1557'!$L$30="","",'ASTM 1557'!$L$30) -> 2-4
A107: 105 | B107: =IF('ASTM 1557'!$N$32="","",'ASTM 1557'!$N$32) -> % - 1 | C107: =IF( 'ASTM 1557'!$B$6="","", 'ASTM 1557'!$B$6) -> ASTM D1557 | D107: =IF('ASTM 1557'!$B$32="","",'ASTM 1557'!$B$32) -> Sample Number : | E107: =IF('ASTM 1557'!$N$30="","",'ASTM 1557'!$N$30) -> 3-1
A108: 106 | B108: =IF('ASTM 1557'!$O$32="","",'ASTM 1557'!$O$32) -> % - 2 | C108: =IF( 'ASTM 1557'!$B$6="","", 'ASTM 1557'!$B$6) -> ASTM D1557 | D108: =IF('ASTM 1557'!$B$32="","",'ASTM 1557'!$B$32) -> Sample Number : | E108: =IF('ASTM 1557'!$O$30="","",'ASTM 1557'!$O$30) -> 3-2
A109: 107 | B109: =IF('ASTM 1557'!$P$32="","",'ASTM 1557'!$P$32) -> % - 3 | C109: =IF( 'ASTM 1557'!$B$6="","", 'ASTM 1557'!$B$6) -> ASTM D1557 | D109: =IF('ASTM 1557'!$B$32="","",'ASTM 1557'!$B$32) -> Sample Number : | E109: =IF('ASTM 1557'!$P$30="","",'ASTM 1557'!$P$30) -> 3-3
A110: 108 | B110: =IF('ASTM 1557'!$Q$32="","",'ASTM 1557'!$Q$32) -> % - 4 | C110: =IF( 'ASTM 1557'!$B$6="","", 'ASTM 1557'!$B$6) -> ASTM D1557 | D110: =IF('ASTM 1557'!$B$32="","",'ASTM 1557'!$B$32) -> Sample Number : | E110: =IF('ASTM 1557'!$Q$30="","",'ASTM 1557'!$Q$30) -> 3-4
A111: 109 | B111: =IF('ASTM 1557'!$D$33="","",'ASTM 1557'!$D$33) ->  | C111: =IF( 'ASTM 1557'!$B$6="","", 'ASTM 1557'!$B$6) -> ASTM D1557 | D111: =IF('ASTM 1557'!$B$33="","",'ASTM 1557'!$B$33) -> Percent Water Content, (%) : | E111: =IF('ASTM 1557'!$D$30="","",'ASTM 1557'!$D$30) -> 1-1
A112: 110 | B112: =IF('ASTM 1557'!$E$33="","",'ASTM 1557'!$E$33) ->  | C112: =IF( 'ASTM 1557'!$B$6="","", 'ASTM 1557'!$B$6) -> ASTM D1557 | D112: =IF('ASTM 1557'!$B$33="","",'ASTM 1557'!$B$33) -> Percent Water Content, (%) : | E112: =IF('ASTM 1557'!$E$30="","",'ASTM 1557'!$E$30) -> 1-2
A113: 111 | B113: =IF('ASTM 1557'!$F$33="","",'ASTM 1557'!$F$33) ->  | C113: =IF( 'ASTM 1557'!$B$6="","", 'ASTM 1557'!$B$6) -> ASTM D1557 | D113: =IF('ASTM 1557'!$B$33="","",'ASTM 1557'!$B$33) -> Percent Water Content, (%) : | E113: =IF('ASTM 1557'!$F$30="","",'ASTM 1557'!$F$30) -> 1-3
A114: 112 | B114: =IF('ASTM 1557'!$G$33="","",'ASTM 1557'!$G$33) ->  | C114: =IF( 'ASTM 1557'!$B$6="","", 'ASTM 1557'!$B$6) -> ASTM D1557 | D114: =IF('ASTM 1557'!$B$33="","",'ASTM 1557'!$B$33) -> Percent Water Content, (%) : | E114: =IF('ASTM 1557'!$G$30="","",'ASTM 1557'!$G$30) -> 1-4
A115: 113 | B115: =IF('ASTM 1557'!$I$33="","",'ASTM 1557'!$I$33) ->  | C115: =IF( 'ASTM 1557'!$B$6="","", 'ASTM 1557'!$B$6) -> ASTM D1557 | D115: =IF('ASTM 1557'!$B$33="","",'ASTM 1557'!$B$33) -> Percent Water Content, (%) : | E115: =IF('ASTM 1557'!$I$30="","",'ASTM 1557'!$I$30) -> 2-1
A116: 114 | B116: =IF('ASTM 1557'!$J$33="","",'ASTM 1557'!$J$33) ->  | C116: =IF( 'ASTM 1557'!$B$6="","", 'ASTM 1557'!$B$6) -> ASTM D1557 | D116: =IF('ASTM 1557'!$B$33="","",'ASTM 1557'!$B$33) -> Percent Water Content, (%) : | E116: =IF('ASTM 1557'!$J$30="","",'ASTM 1557'!$J$30) -> 2-2
A117: 115 | B117: =IF('ASTM 1557'!$K$33="","",'ASTM 1557'!$K$33) ->  | C117: =IF( 'ASTM 1557'!$B$6="","", 'ASTM 1557'!$B$6) -> ASTM D1557 | D117: =IF('ASTM 1557'!$B$33="","",'ASTM 1557'!$B$33) -> Percent Water Content, (%) : | E117: =IF('ASTM 1557'!$K$30="","",'ASTM 1557'!$K$30) -> 2-3
A118: 116 | B118: =IF('ASTM 1557'!$L$33="","",'ASTM 1557'!$L$33) ->  | C118: =IF( 'ASTM 1557'!$B$6="","", 'ASTM 1557'!$B$6) -> ASTM D1557 | D118: =IF('ASTM 1557'!$B$33="","",'ASTM 1557'!$B$33) -> Percent Water Content, (%) : | E118: =IF('ASTM 1557'!$L$30="","",'ASTM 1557'!$L$30) -> 2-4
A119: 117 | B119: =IF('ASTM 1557'!$N$33="","",'ASTM 1557'!$N$33) ->  | C119: =IF( 'ASTM 1557'!$B$6="","", 'ASTM 1557'!$B$6) -> ASTM D1557 | D119: =IF('ASTM 1557'!$B$33="","",'ASTM 1557'!$B$33) -> Percent Water Content, (%) : | E119: =IF('ASTM 1557'!$N$30="","",'ASTM 1557'!$N$30) -> 3-1
A120: 118 | B120: =IF('ASTM 1557'!$O$33="","",'ASTM 1557'!$O$33) ->  | C120: =IF( 'ASTM 1557'!$B$6="","", 'ASTM 1557'!$B$6) -> ASTM D1557 | D120: =IF('ASTM 1557'!$B$33="","",'ASTM 1557'!$B$33) -> Percent Water Content, (%) : | E120: =IF('ASTM 1557'!$O$30="","",'ASTM 1557'!$O$30) -> 3-2
A121: 119 | B121: =IF('ASTM 1557'!$P$33="","",'ASTM 1557'!$P$33) ->  | C121: =IF( 'ASTM 1557'!$B$6="","", 'ASTM 1557'!$B$6) -> ASTM D1557 | D121: =IF('ASTM 1557'!$B$33="","",'ASTM 1557'!$B$33) -> Percent Water Content, (%) : | E121: =IF('ASTM 1557'!$P$30="","",'ASTM 1557'!$P$30) -> 3-3
A122: 120 | B122: =IF('ASTM 1557'!$Q$33="","",'ASTM 1557'!$Q$33) ->  | C122: =IF( 'ASTM 1557'!$B$6="","", 'ASTM 1557'!$B$6) -> ASTM D1557 | D122: =IF('ASTM 1557'!$B$33="","",'ASTM 1557'!$B$33) -> Percent Water Content, (%) : | E122: =IF('ASTM 1557'!$Q$30="","",'ASTM 1557'!$Q$30) -> 3-4
A123: 121 | B123: =IF('ASTM 1557'!$D$35="","",'ASTM 1557'!$D$35) ->  | C123: =IF( 'ASTM 1557'!$B$6="","", 'ASTM 1557'!$B$6) -> ASTM D1557 | D123: =IF('ASTM 1557'!$B$35="","",'ASTM 1557'!$B$35) -> Mass of Dry Aggregate, (lb) : | E123: =IF('ASTM 1557'!$D$30="","",'ASTM 1557'!$D$30) -> 1-1
A124: 122 | B124: =IF('ASTM 1557'!$E$35="","",'ASTM 1557'!$E$35) ->  | C124: =IF( 'ASTM 1557'!$B$6="","", 'ASTM 1557'!$B$6) -> ASTM D1557 | D124: =IF('ASTM 1557'!$B$35="","",'ASTM 1557'!$B$35) -> Mass of Dry Aggregate, (lb) : | E124: =IF('ASTM 1557'!$E$30="","",'ASTM 1557'!$E$30) -> 1-2
A125: 123 | B125: =IF('ASTM 1557'!$F$35="","",'ASTM 1557'!$F$35) ->  | C125: =IF( 'ASTM 1557'!$B$6="","", 'ASTM 1557'!$B$6) -> ASTM D1557 | D125: =IF('ASTM 1557'!$B$35="","",'ASTM 1557'!$B$35) -> Mass of Dry Aggregate, (lb) : | E125: =IF('ASTM 1557'!$F$30="","",'ASTM 1557'!$F$30) -> 1-3
A126: 124 | B126: =IF('ASTM 1557'!$G$35="","",'ASTM 1557'!$G$35) ->  | C126: =IF( 'ASTM 1557'!$B$6="","", 'ASTM 1557'!$B$6) -> ASTM D1557 | D126: =IF('ASTM 1557'!$B$35="","",'ASTM 1557'!$B$35) -> Mass of Dry Aggregate, (lb) : | E126: =IF('ASTM 1557'!$G$30="","",'ASTM 1557'!$G$30) -> 1-4
A127: 125 | B127: =IF('ASTM 1557'!$I$35="","",'ASTM 1557'!$I$35) ->  | C127: =IF( 'ASTM 1557'!$B$6="","", 'ASTM 1557'!$B$6) -> ASTM D1557 | D127: =IF('ASTM 1557'!$B$35="","",'ASTM 1557'!$B$35) -> Mass of Dry Aggregate, (lb) : | E127: =IF('ASTM 1557'!$I$30="","",'ASTM 1557'!$I$30) -> 2-1
A128: 126 | B128: =IF('ASTM 1557'!$J$35="","",'ASTM 1557'!$J$35) ->  | C128: =IF( 'ASTM 1557'!$B$6="","", 'ASTM 1557'!$B$6) -> ASTM D1557 | D128: =IF('ASTM 1557'!$B$35="","",'ASTM 1557'!$B$35) -> Mass of Dry Aggregate, (lb) : | E128: =IF('ASTM 1557'!$J$30="","",'ASTM 1557'!$J$30) -> 2-2
A129: 127 | B129: =IF('ASTM 1557'!$K$35="","",'ASTM 1557'!$K$35) ->  | C129: =IF( 'ASTM 1557'!$B$6="","", 'ASTM 1557'!$B$6) -> ASTM D1557 | D129: =IF('ASTM 1557'!$B$35="","",'ASTM 1557'!$B$35) -> Mass of Dry Aggregate, (lb) : | E129: =IF('ASTM 1557'!$K$30="","",'ASTM 1557'!$K$30) -> 2-3
A130: 128 | B130: =IF('ASTM 1557'!$L$35="","",'ASTM 1557'!$L$35) ->  | C130: =IF( 'ASTM 1557'!$B$6="","", 'ASTM 1557'!$B$6) -> ASTM D1557 | D130: =IF('ASTM 1557'!$B$35="","",'ASTM 1557'!$B$35) -> Mass of Dry Aggregate, (lb) : | E130: =IF('ASTM 1557'!$L$30="","",'ASTM 1557'!$L$30) -> 2-4
A131: 129 | B131: =IF('ASTM 1557'!$N$35="","",'ASTM 1557'!$N$35) ->  | C131: =IF( 'ASTM 1557'!$B$6="","", 'ASTM 1557'!$B$6) -> ASTM D1557 | D131: =IF('ASTM 1557'!$B$35="","",'ASTM 1557'!$B$35) -> Mass of Dry Aggregate, (lb) : | E131: =IF('ASTM 1557'!$N$30="","",'ASTM 1557'!$N$30) -> 3-1
A132: 130 | B132: =IF('ASTM 1557'!$O$35="","",'ASTM 1557'!$O$35) ->  | C132: =IF( 'ASTM 1557'!$B$6="","", 'ASTM 1557'!$B$6) -> ASTM D1557 | D132: =IF('ASTM 1557'!$B$35="","",'ASTM 1557'!$B$35) -> Mass of Dry Aggregate, (lb) : | E132: =IF('ASTM 1557'!$O$30="","",'ASTM 1557'!$O$30) -> 3-2
A133: 131 | B133: =IF('ASTM 1557'!$P$35="","",'ASTM 1557'!$P$35) ->  | C133: =IF( 'ASTM 1557'!$B$6="","", 'ASTM 1557'!$B$6) -> ASTM D1557 | D133: =IF('ASTM 1557'!$B$35="","",'ASTM 1557'!$B$35) -> Mass of Dry Aggregate, (lb) : | E133: =IF('ASTM 1557'!$P$30="","",'ASTM 1557'!$P$30) -> 3-3
A134: 132 | B134: =IF('ASTM 1557'!$Q$35="","",'ASTM 1557'!$Q$35) ->  | C134: =IF( 'ASTM 1557'!$B$6="","", 'ASTM 1557'!$B$6) -> ASTM D1557 | D134: =IF('ASTM 1557'!$B$35="","",'ASTM 1557'!$B$35) -> Mass of Dry Aggregate, (lb) : | E134: =IF('ASTM 1557'!$Q$30="","",'ASTM 1557'!$Q$30) -> 3-4
A135: 133 | B135: =IF('ASTM 1557'!$D$36="","",'ASTM 1557'!$D$36) ->  | C135: =IF( 'ASTM 1557'!$B$6="","", 'ASTM 1557'!$B$6) -> ASTM D1557 | D135: =IF('ASTM 1557'!$B$36="","",'ASTM 1557'!$B$36) -> Total Mass of Cementitios Materials, (lb) : | E135: =IF('ASTM 1557'!$D$30="","",'ASTM 1557'!$D$30) -> 1-1
A136: 134 | B136: =IF('ASTM 1557'!$E$36="","",'ASTM 1557'!$E$36) ->  | C136: =IF( 'ASTM 1557'!$B$6="","", 'ASTM 1557'!$B$6) -> ASTM D1557 | D136: =IF('ASTM 1557'!$B$36="","",'ASTM 1557'!$B$36) -> Total Mass of Cementitios Materials, (lb) : | E136: =IF('ASTM 1557'!$E$30="","",'ASTM 1557'!$E$30) -> 1-2
A137: 135 | B137: =IF('ASTM 1557'!$F$36="","",'ASTM 1557'!$F$36) ->  | C137: =IF( 'ASTM 1557'!$B$6="","", 'ASTM 1557'!$B$6) -> ASTM D1557 | D137: =IF('ASTM 1557'!$B$36="","",'ASTM 1557'!$B$36) -> Total Mass of Cementitios Materials, (lb) : | E137: =IF('ASTM 1557'!$F$30="","",'ASTM 1557'!$F$30) -> 1-3
A138: 136 | B138: =IF('ASTM 1557'!$G$36="","",'ASTM 1557'!$G$36) ->  | C138: =IF( 'ASTM 1557'!$B$6="","", 'ASTM 1557'!$B$6) -> ASTM D1557 | D138: =IF('ASTM 1557'!$B$36="","",'ASTM 1557'!$B$36) -> Total Mass of Cementitios Materials, (lb) : | E138: =IF('ASTM 1557'!$G$30="","",'ASTM 1557'!$G$30) -> 1-4
A139: 137 | B139: =IF('ASTM 1557'!$I$36="","",'ASTM 1557'!$I$36) ->  | C139: =IF( 'ASTM 1557'!$B$6="","", 'ASTM 1557'!$B$6) -> ASTM D1557 | D139: =IF('ASTM 1557'!$B$36="","",'ASTM 1557'!$B$36) -> Total Mass of Cementitios Materials, (lb) : | E139: =IF('ASTM 1557'!$I$30="","",'ASTM 1557'!$I$30) -> 2-1
A140: 138 | B140: =IF('ASTM 1557'!$J$36="","",'ASTM 1557'!$J$36) ->  | C140: =IF( 'ASTM 1557'!$B$6="","", 'ASTM 1557'!$B$6) -> ASTM D1557 | D140: =IF('ASTM 1557'!$B$36="","",'ASTM 1557'!$B$36) -> Total Mass of Cementitios Materials, (lb) : | E140: =IF('ASTM 1557'!$J$30="","",'ASTM 1557'!$J$30) -> 2-2
A141: 139 | B141: =IF('ASTM 1557'!$K$36="","",'ASTM 1557'!$K$36) ->  | C141: =IF( 'ASTM 1557'!$B$6="","", 'ASTM 1557'!$B$6) -> ASTM D1557 | D141: =IF('ASTM 1557'!$B$36="","",'ASTM 1557'!$B$36) -> Total Mass of Cementitios Materials, (lb) : | E141: =IF('ASTM 1557'!$K$30="","",'ASTM 1557'!$K$30) -> 2-3
A142: 140 | B142: =IF('ASTM 1557'!$L$36="","",'ASTM 1557'!$L$36) ->  | C142: =IF( 'ASTM 1557'!$B$6="","", 'ASTM 1557'!$B$6) -> ASTM D1557 | D142: =IF('ASTM 1557'!$B$36="","",'ASTM 1557'!$B$36) -> Total Mass of Cementitios Materials, (lb) : | E142: =IF('ASTM 1557'!$L$30="","",'ASTM 1557'!$L$30) -> 2-4
A143: 141 | B143: =IF('ASTM 1557'!$N$36="","",'ASTM 1557'!$N$36) ->  | C143: =IF( 'ASTM 1557'!$B$6="","", 'ASTM 1557'!$B$6) -> ASTM D1557 | D143: =IF('ASTM 1557'!$B$36="","",'ASTM 1557'!$B$36) -> Total Mass of Cementitios Materials, (lb) : | E143: =IF('ASTM 1557'!$N$30="","",'ASTM 1557'!$N$30) -> 3-1
A144: 142 | B144: =IF('ASTM 1557'!$O$36="","",'ASTM 1557'!$O$36) ->  | C144: =IF( 'ASTM 1557'!$B$6="","", 'ASTM 1557'!$B$6) -> ASTM D1557 | D144: =IF('ASTM 1557'!$B$36="","",'ASTM 1557'!$B$36) -> Total Mass of Cementitios Materials, (lb) : | E144: =IF('ASTM 1557'!$O$30="","",'ASTM 1557'!$O$30) -> 3-2
A145: 143 | B145: =IF('ASTM 1557'!$P$36="","",'ASTM 1557'!$P$36) ->  | C145: =IF( 'ASTM 1557'!$B$6="","", 'ASTM 1557'!$B$6) -> ASTM D1557 | D145: =IF('ASTM 1557'!$B$36="","",'ASTM 1557'!$B$36) -> Total Mass of Cementitios Materials, (lb) : | E145: =IF('ASTM 1557'!$P$30="","",'ASTM 1557'!$P$30) -> 3-3
A146: 144 | B146: =IF('ASTM 1557'!$Q$36="","",'ASTM 1557'!$Q$36) ->  | C146: =IF( 'ASTM 1557'!$B$6="","", 'ASTM 1557'!$B$6) -> ASTM D1557 | D146: =IF('ASTM 1557'!$B$36="","",'ASTM 1557'!$B$36) -> Total Mass of Cementitios Materials, (lb) : | E146: =IF('ASTM 1557'!$Q$30="","",'ASTM 1557'!$Q$30) -> 3-4
A147: 145 | B147: =IF('ASTM 1557'!$D$37="","",'ASTM 1557'!$D$37) ->  | C147: =IF( 'ASTM 1557'!$B$6="","", 'ASTM 1557'!$B$6) -> ASTM D1557 | D147: =IF('ASTM 1557'!$B$37="","",'ASTM 1557'!$B$37) -> Total Mass of Dry Material, (lb) : | E147: =IF('ASTM 1557'!$D$30="","",'ASTM 1557'!$D$30) -> 1-1
A148: 146 | B148: =IF('ASTM 1557'!$E$37="","",'ASTM 1557'!$E$37) ->  | C148: =IF( 'ASTM 1557'!$B$6="","", 'ASTM 1557'!$B$6) -> ASTM D1557 | D148: =IF('ASTM 1557'!$B$37="","",'ASTM 1557'!$B$37) -> Total Mass of Dry Material, (lb) : | E148: =IF('ASTM 1557'!$E$30="","",'ASTM 1557'!$E$30) -> 1-2
A149: 147 | B149: =IF('ASTM 1557'!$F$37="","",'ASTM 1557'!$F$37) ->  | C149: =IF( 'ASTM 1557'!$B$6="","", 'ASTM 1557'!$B$6) -> ASTM D1557 | D149: =IF('ASTM 1557'!$B$37="","",'ASTM 1557'!$B$37) -> Total Mass of Dry Material, (lb) : | E149: =IF('ASTM 1557'!$F$30="","",'ASTM 1557'!$F$30) -> 1-3
A150: 148 | B150: =IF('ASTM 1557'!$G$37="","",'ASTM 1557'!$G$37) ->  | C150: =IF( 'ASTM 1557'!$B$6="","", 'ASTM 1557'!$B$6) -> ASTM D1557 | D150: =IF('ASTM 1557'!$B$37="","",'ASTM 1557'!$B$37) -> Total Mass of Dry Material, (lb) : | E150: =IF('ASTM 1557'!$G$30="","",'ASTM 1557'!$G$30) -> 1-4
A151: 149 | B151: =IF('ASTM 1557'!$I$37="","",'ASTM 1557'!$I$37) ->  | C151: =IF( 'ASTM 1557'!$B$6="","", 'ASTM 1557'!$B$6) -> ASTM D1557 | D151: =IF('ASTM 1557'!$B$37="","",'ASTM 1557'!$B$37) -> Total Mass of Dry Material, (lb) : | E151: =IF('ASTM 1557'!$I$30="","",'ASTM 1557'!$I$30) -> 2-1
A152: 150 | B152: =IF('ASTM 1557'!$J$37="","",'ASTM 1557'!$J$37) ->  | C152: =IF( 'ASTM 1557'!$B$6="","", 'ASTM 1557'!$B$6) -> ASTM D1557 | D152: =IF('ASTM 1557'!$B$37="","",'ASTM 1557'!$B$37) -> Total Mass of Dry Material, (lb) : | E152: =IF('ASTM 1557'!$J$30="","",'ASTM 1557'!$J$30) -> 2-2
A153: 151 | B153: =IF('ASTM 1557'!$K$37="","",'ASTM 1557'!$K$37) ->  | C153: =IF( 'ASTM 1557'!$B$6="","", 'ASTM 1557'!$B$6) -> ASTM D1557 | D153: =IF('ASTM 1557'!$B$37="","",'ASTM 1557'!$B$37) -> Total Mass of Dry Material, (lb) : | E153: =IF('ASTM 1557'!$K$30="","",'ASTM 1557'!$K$30) -> 2-3
A154: 152 | B154: =IF('ASTM 1557'!$L$37="","",'ASTM 1557'!$L$37) ->  | C154: =IF( 'ASTM 1557'!$B$6="","", 'ASTM 1557'!$B$6) -> ASTM D1557 | D154: =IF('ASTM 1557'!$B$37="","",'ASTM 1557'!$B$37) -> Total Mass of Dry Material, (lb) : | E154: =IF('ASTM 1557'!$L$30="","",'ASTM 1557'!$L$30) -> 2-4
A155: 153 | B155: =IF('ASTM 1557'!$N$37="","",'ASTM 1557'!$N$37) ->  | C155: =IF( 'ASTM 1557'!$B$6="","", 'ASTM 1557'!$B$6) -> ASTM D1557 | D155: =IF('ASTM 1557'!$B$37="","",'ASTM 1557'!$B$37) -> Total Mass of Dry Material, (lb) : | E155: =IF('ASTM 1557'!$N$30="","",'ASTM 1557'!$N$30) -> 3-1
A156: 154 | B156: =IF('ASTM 1557'!$O$37="","",'ASTM 1557'!$O$37) ->  | C156: =IF( 'ASTM 1557'!$B$6="","", 'ASTM 1557'!$B$6) -> ASTM D1557 | D156: =IF('ASTM 1557'!$B$37="","",'ASTM 1557'!$B$37) -> Total Mass of Dry Material, (lb) : | E156: =IF('ASTM 1557'!$O$30="","",'ASTM 1557'!$O$30) -> 3-2
A157: 155 | B157: =IF('ASTM 1557'!$P$37="","",'ASTM 1557'!$P$37) ->  | C157: =IF( 'ASTM 1557'!$B$6="","", 'ASTM 1557'!$B$6) -> ASTM D1557 | D157: =IF('ASTM 1557'!$B$37="","",'ASTM 1557'!$B$37) -> Total Mass of Dry Material, (lb) : | E157: =IF('ASTM 1557'!$P$30="","",'ASTM 1557'!$P$30) -> 3-3
A158: 156 | B158: =IF('ASTM 1557'!$Q$37="","",'ASTM 1557'!$Q$37) ->  | C158: =IF( 'ASTM 1557'!$B$6="","", 'ASTM 1557'!$B$6) -> ASTM D1557 | D158: =IF('ASTM 1557'!$B$37="","",'ASTM 1557'!$B$37) -> Total Mass of Dry Material, (lb) : | E158: =IF('ASTM 1557'!$Q$30="","",'ASTM 1557'!$Q$30) -> 3-4
A159: 157 | B159: =IF('ASTM 1557'!$D$38="","",'ASTM 1557'!$D$38) ->  | C159: =IF( 'ASTM 1557'!$B$6="","", 'ASTM 1557'!$B$6) -> ASTM D1557 | D159: =IF('ASTM 1557'!$B$38="","",'ASTM 1557'!$B$38) -> Mass Water Added, (lb) : | E159: =IF('ASTM 1557'!$D$30="","",'ASTM 1557'!$D$30) -> 1-1
A160: 158 | B160: =IF('ASTM 1557'!$E$38="","",'ASTM 1557'!$E$38) ->  | C160: =IF( 'ASTM 1557'!$B$6="","", 'ASTM 1557'!$B$6) -> ASTM D1557 | D160: =IF('ASTM 1557'!$B$38="","",'ASTM 1557'!$B$38) -> Mass Water Added, (lb) : | E160: =IF('ASTM 1557'!$E$30="","",'ASTM 1557'!$E$30) -> 1-2
A161: 159 | B161: =IF('ASTM 1557'!$F$38="","",'ASTM 1557'!$F$38) ->  | C161: =IF( 'ASTM 1557'!$B$6="","", 'ASTM 1557'!$B$6) -> ASTM D1557 | D161: =IF('ASTM 1557'!$B$38="","",'ASTM 1557'!$B$38) -> Mass Water Added, (lb) : | E161: =IF('ASTM 1557'!$F$30="","",'ASTM 1557'!$F$30) -> 1-3
A162: 160 | B162: =IF('ASTM 1557'!$G$38="","",'ASTM 1557'!$G$38) ->  | C162: =IF( 'ASTM 1557'!$B$6="","", 'ASTM 1557'!$B$6) -> ASTM D1557 | D162: =IF('ASTM 1557'!$B$38="","",'ASTM 1557'!$B$38) -> Mass Water Added, (lb) : | E162: =IF('ASTM 1557'!$G$30="","",'ASTM 1557'!$G$30) -> 1-4
A163: 161 | B163: =IF('ASTM 1557'!$I$38="","",'ASTM 1557'!$I$38) ->  | C163: =IF( 'ASTM 1557'!$B$6="","", 'ASTM 1557'!$B$6) -> ASTM D1557 | D163: =IF('ASTM 1557'!$B$38="","",'ASTM 1557'!$B$38) -> Mass Water Added, (lb) : | E163: =IF('ASTM 1557'!$I$30="","",'ASTM 1557'!$I$30) -> 2-1
A164: 162 | B164: =IF('ASTM 1557'!$J$38="","",'ASTM 1557'!$J$38) ->  | C164: =IF( 'ASTM 1557'!$B$6="","", 'ASTM 1557'!$B$6) -> ASTM D1557 | D164: =IF('ASTM 1557'!$B$38="","",'ASTM 1557'!$B$38) -> Mass Water Added, (lb) : | E164: =IF('ASTM 1557'!$J$30="","",'ASTM 1557'!$J$30) -> 2-2
A165: 163 | B165: =IF('ASTM 1557'!$K$38="","",'ASTM 1557'!$K$38) ->  | C165: =IF( 'ASTM 1557'!$B$6="","", 'ASTM 1557'!$B$6) -> ASTM D1557 | D165: =IF('ASTM 1557'!$B$38="","",'ASTM 1557'!$B$38) -> Mass Water Added, (lb) : | E165: =IF('ASTM 1557'!$K$30="","",'ASTM 1557'!$K$30) -> 2-3
A166: 164 | B166: =IF('ASTM 1557'!$L$38="","",'ASTM 1557'!$L$38) ->  | C166: =IF( 'ASTM 1557'!$B$6="","", 'ASTM 1557'!$B$6) -> ASTM D1557 | D166: =IF('ASTM 1557'!$B$38="","",'ASTM 1557'!$B$38) -> Mass Water Added, (lb) : | E166: =IF('ASTM 1557'!$L$30="","",'ASTM 1557'!$L$30) -> 2-4
A167: 165 | B167: =IF('ASTM 1557'!$N$38="","",'ASTM 1557'!$N$38) ->  | C167: =IF( 'ASTM 1557'!$B$6="","", 'ASTM 1557'!$B$6) -> ASTM D1557 | D167: =IF('ASTM 1557'!$B$38="","",'ASTM 1557'!$B$38) -> Mass Water Added, (lb) : | E167: =IF('ASTM 1557'!$N$30="","",'ASTM 1557'!$N$30) -> 3-1
A168: 166 | B168: =IF('ASTM 1557'!$O$38="","",'ASTM 1557'!$O$38) ->  | C168: =IF( 'ASTM 1557'!$B$6="","", 'ASTM 1557'!$B$6) -> ASTM D1557 | D168: =IF('ASTM 1557'!$B$38="","",'ASTM 1557'!$B$38) -> Mass Water Added, (lb) : | E168: =IF('ASTM 1557'!$O$30="","",'ASTM 1557'!$O$30) -> 3-2
A169: 167 | B169: =IF('ASTM 1557'!$P$38="","",'ASTM 1557'!$P$38) ->  | C169: =IF( 'ASTM 1557'!$B$6="","", 'ASTM 1557'!$B$6) -> ASTM D1557 | D169: =IF('ASTM 1557'!$B$38="","",'ASTM 1557'!$B$38) -> Mass Water Added, (lb) : | E169: =IF('ASTM 1557'!$P$30="","",'ASTM 1557'!$P$30) -> 3-3
A170: 168 | B170: =IF('ASTM 1557'!$Q$38="","",'ASTM 1557'!$Q$38) ->  | C170: =IF( 'ASTM 1557'!$B$6="","", 'ASTM 1557'!$B$6) -> ASTM D1557 | D170: =IF('ASTM 1557'!$B$38="","",'ASTM 1557'!$B$38) -> Mass Water Added, (lb) : | E170: =IF('ASTM 1557'!$Q$30="","",'ASTM 1557'!$Q$30) -> 3-4
A171: 169 | B171: =IF('ASTM 1557'!$D$40="","",'ASTM 1557'!$D$40) ->  | C171: =IF( 'ASTM 1557'!$B$6="","", 'ASTM 1557'!$B$6) -> ASTM D1557 | D171: =IF('ASTM 1557'!$B$40="","",'ASTM 1557'!$B$40) -> Wet Mass Specimen & Mold, (lb) : | E171: =IF('ASTM 1557'!$D$30="","",'ASTM 1557'!$D$30) -> 1-1
A172: 170 | B172: =IF('ASTM 1557'!$E$40="","",'ASTM 1557'!$E$40) ->  | C172: =IF( 'ASTM 1557'!$B$6="","", 'ASTM 1557'!$B$6) -> ASTM D1557 | D172: =IF('ASTM 1557'!$B$40="","",'ASTM 1557'!$B$40) -> Wet Mass Specimen & Mold, (lb) : | E172: =IF('ASTM 1557'!$E$30="","",'ASTM 1557'!$E$30) -> 1-2
A173: 171 | B173: =IF('ASTM 1557'!$F$40="","",'ASTM 1557'!$F$40) ->  | C173: =IF( 'ASTM 1557'!$B$6="","", 'ASTM 1557'!$B$6) -> ASTM D1557 | D173: =IF('ASTM 1557'!$B$40="","",'ASTM 1557'!$B$40) -> Wet Mass Specimen & Mold, (lb) : | E173: =IF('ASTM 1557'!$F$30="","",'ASTM 1557'!$F$30) -> 1-3
A174: 172 | B174: =IF('ASTM 1557'!$G$40="","",'ASTM 1557'!$G$40) ->  | C174: =IF( 'ASTM 1557'!$B$6="","", 'ASTM 1557'!$B$6) -> ASTM D1557 | D174: =IF('ASTM 1557'!$B$40="","",'ASTM 1557'!$B$40) -> Wet Mass Specimen & Mold, (lb) : | E174: =IF('ASTM 1557'!$G$30="","",'ASTM 1557'!$G$30) -> 1-4
A175: 173 | B175: =IF('ASTM 1557'!$I$40="","",'ASTM 1557'!$I$40) ->  | C175: =IF( 'ASTM 1557'!$B$6="","", 'ASTM 1557'!$B$6) -> ASTM D1557 | D175: =IF('ASTM 1557'!$B$40="","",'ASTM 1557'!$B$40) -> Wet Mass Specimen & Mold, (lb) : | E175: =IF('ASTM 1557'!$I$30="","",'ASTM 1557'!$I$30) -> 2-1
A176: 174 | B176: =IF('ASTM 1557'!$J$40="","",'ASTM 1557'!$J$40) ->  | C176: =IF( 'ASTM 1557'!$B$6="","", 'ASTM 1557'!$B$6) -> ASTM D1557 | D176: =IF('ASTM 1557'!$B$40="","",'ASTM 1557'!$B$40) -> Wet Mass Specimen & Mold, (lb) : | E176: =IF('ASTM 1557'!$J$30="","",'ASTM 1557'!$J$30) -> 2-2
A177: 175 | B177: =IF('ASTM 1557'!$K$40="","",'ASTM 1557'!$K$40) ->  | C177: =IF( 'ASTM 1557'!$B$6="","", 'ASTM 1557'!$B$6) -> ASTM D1557 | D177: =IF('ASTM 1557'!$B$40="","",'ASTM 1557'!$B$40) -> Wet Mass Specimen & Mold, (lb) : | E177: =IF('ASTM 1557'!$K$30="","",'ASTM 1557'!$K$30) -> 2-3
A178: 176 | B178: =IF('ASTM 1557'!$L$40="","",'ASTM 1557'!$L$40) ->  | C178: =IF( 'ASTM 1557'!$B$6="","", 'ASTM 1557'!$B$6) -> ASTM D1557 | D178: =IF('ASTM 1557'!$B$40="","",'ASTM 1557'!$B$40) -> Wet Mass Specimen & Mold, (lb) : | E178: =IF('ASTM 1557'!$L$30="","",'ASTM 1557'!$L$30) -> 2-4
A179: 177 | B179: =IF('ASTM 1557'!$N$40="","",'ASTM 1557'!$N$40) ->  | C179: =IF( 'ASTM 1557'!$B$6="","", 'ASTM 1557'!$B$6) -> ASTM D1557 | D179: =IF('ASTM 1557'!$B$40="","",'ASTM 1557'!$B$40) -> Wet Mass Specimen & Mold, (lb) : | E179: =IF('ASTM 1557'!$N$30="","",'ASTM 1557'!$N$30) -> 3-1
A180: 178 | B180: =IF('ASTM 1557'!$O$40="","",'ASTM 1557'!$O$40) ->  | C180: =IF( 'ASTM 1557'!$B$6="","", 'ASTM 1557'!$B$6) -> ASTM D1557 | D180: =IF('ASTM 1557'!$B$40="","",'ASTM 1557'!$B$40) -> Wet Mass Specimen & Mold, (lb) : | E180: =IF('ASTM 1557'!$O$30="","",'ASTM 1557'!$O$30) -> 3-2
A181: 179 | B181: =IF('ASTM 1557'!$P$40="","",'ASTM 1557'!$P$40) ->  | C181: =IF( 'ASTM 1557'!$B$6="","", 'ASTM 1557'!$B$6) -> ASTM D1557 | D181: =IF('ASTM 1557'!$B$40="","",'ASTM 1557'!$B$40) -> Wet Mass Specimen & Mold, (lb) : | E181: =IF('ASTM 1557'!$P$30="","",'ASTM 1557'!$P$30) -> 3-3
A182: 180 | B182: =IF('ASTM 1557'!$Q$40="","",'ASTM 1557'!$Q$40) ->  | C182: =IF( 'ASTM 1557'!$B$6="","", 'ASTM 1557'!$B$6) -> ASTM D1557 | D182: =IF('ASTM 1557'!$B$40="","",'ASTM 1557'!$B$40) -> Wet Mass Specimen & Mold, (lb) : | E182: =IF('ASTM 1557'!$Q$30="","",'ASTM 1557'!$Q$30) -> 3-4
A183: 181 | B183: =IF('ASTM 1557'!$D$41="","",'ASTM 1557'!$D$41) ->  | C183: =IF( 'ASTM 1557'!$B$6="","", 'ASTM 1557'!$B$6) -> ASTM D1557 | D183: =IF('ASTM 1557'!$B$41="","",'ASTM 1557'!$B$41) -> Mass of Mold, (lb): | E183: =IF('ASTM 1557'!$D$30="","",'ASTM 1557'!$D$30) -> 1-1
A184: 182 | B184: =IF('ASTM 1557'!$E$41="","",'ASTM 1557'!$E$41) ->  | C184: =IF( 'ASTM 1557'!$B$6="","", 'ASTM 1557'!$B$6) -> ASTM D1557 | D184: =IF('ASTM 1557'!$B$41="","",'ASTM 1557'!$B$41) -> Mass of Mold, (lb): | E184: =IF('ASTM 1557'!$E$30="","",'ASTM 1557'!$E$30) -> 1-2
A185: 183 | B185: =IF('ASTM 1557'!$F$41="","",'ASTM 1557'!$F$41) ->  | C185: =IF( 'ASTM 1557'!$B$6="","", 'ASTM 1557'!$B$6) -> ASTM D1557 | D185: =IF('ASTM 1557'!$B$41="","",'ASTM 1557'!$B$41) -> Mass of Mold, (lb): | E185: =IF('ASTM 1557'!$F$30="","",'ASTM 1557'!$F$30) -> 1-3
A186: 184 | B186: =IF('ASTM 1557'!$G$41="","",'ASTM 1557'!$G$41) ->  | C186: =IF( 'ASTM 1557'!$B$6="","", 'ASTM 1557'!$B$6) -> ASTM D1557 | D186: =IF('ASTM 1557'!$B$41="","",'ASTM 1557'!$B$41) -> Mass of Mold, (lb): | E186: =IF('ASTM 1557'!$G$30="","",'ASTM 1557'!$G$30) -> 1-4
A187: 185 | B187: =IF('ASTM 1557'!$I$41="","",'ASTM 1557'!$I$41) ->  | C187: =IF( 'ASTM 1557'!$B$6="","", 'ASTM 1557'!$B$6) -> ASTM D1557 | D187: =IF('ASTM 1557'!$B$41="","",'ASTM 1557'!$B$41) -> Mass of Mold, (lb): | E187: =IF('ASTM 1557'!$I$30="","",'ASTM 1557'!$I$30) -> 2-1
A188: 186 | B188: =IF('ASTM 1557'!$J$41="","",'ASTM 1557'!$J$41) ->  | C188: =IF( 'ASTM 1557'!$B$6="","", 'ASTM 1557'!$B$6) -> ASTM D1557 | D188: =IF('ASTM 1557'!$B$41="","",'ASTM 1557'!$B$41) -> Mass of Mold, (lb): | E188: =IF('ASTM 1557'!$J$30="","",'ASTM 1557'!$J$30) -> 2-2
A189: 187 | B189: =IF('ASTM 1557'!$K$41="","",'ASTM 1557'!$K$41) ->  | C189: =IF( 'ASTM 1557'!$B$6="","", 'ASTM 1557'!$B$6) -> ASTM D1557 | D189: =IF('ASTM 1557'!$B$41="","",'ASTM 1557'!$B$41) -> Mass of Mold, (lb): | E189: =IF('ASTM 1557'!$K$30="","",'ASTM 1557'!$K$30) -> 2-3
A190: 188 | B190: =IF('ASTM 1557'!$L$41="","",'ASTM 1557'!$L$41) ->  | C190: =IF( 'ASTM 1557'!$B$6="","", 'ASTM 1557'!$B$6) -> ASTM D1557 | D190: =IF('ASTM 1557'!$B$41="","",'ASTM 1557'!$B$41) -> Mass of Mold, (lb): | E190: =IF('ASTM 1557'!$L$30="","",'ASTM 1557'!$L$30) -> 2-4
A191: 189 | B191: =IF('ASTM 1557'!$N$41="","",'ASTM 1557'!$N$41) ->  | C191: =IF( 'ASTM 1557'!$B$6="","", 'ASTM 1557'!$B$6) -> ASTM D1557 | D191: =IF('ASTM 1557'!$B$41="","",'ASTM 1557'!$B$41) -> Mass of Mold, (lb): | E191: =IF('ASTM 1557'!$N$30="","",'ASTM 1557'!$N$30) -> 3-1
A192: 190 | B192: =IF('ASTM 1557'!$O$41="","",'ASTM 1557'!$O$41) ->  | C192: =IF( 'ASTM 1557'!$B$6="","", 'ASTM 1557'!$B$6) -> ASTM D1557 | D192: =IF('ASTM 1557'!$B$41="","",'ASTM 1557'!$B$41) -> Mass of Mold, (lb): | E192: =IF('ASTM 1557'!$O$30="","",'ASTM 1557'!$O$30) -> 3-2
A193: 191 | B193: =IF('ASTM 1557'!$P$41="","",'ASTM 1557'!$P$41) ->  | C193: =IF( 'ASTM 1557'!$B$6="","", 'ASTM 1557'!$B$6) -> ASTM D1557 | D193: =IF('ASTM 1557'!$B$41="","",'ASTM 1557'!$B$41) -> Mass of Mold, (lb): | E193: =IF('ASTM 1557'!$P$30="","",'ASTM 1557'!$P$30) -> 3-3
A194: 192 | B194: =IF('ASTM 1557'!$Q$41="","",'ASTM 1557'!$Q$41) ->  | C194: =IF( 'ASTM 1557'!$B$6="","", 'ASTM 1557'!$B$6) -> ASTM D1557 | D194: =IF('ASTM 1557'!$B$41="","",'ASTM 1557'!$B$41) -> Mass of Mold, (lb): | E194: =IF('ASTM 1557'!$Q$30="","",'ASTM 1557'!$Q$30) -> 3-4
A195: 193 | B195: =IF('ASTM 1557'!$D$42="","",'ASTM 1557'!$D$42) ->  | C195: =IF( 'ASTM 1557'!$B$6="","", 'ASTM 1557'!$B$6) -> ASTM D1557 | D195: =IF('ASTM 1557'!$B$42="","",'ASTM 1557'!$B$42) ->  | E195: =IF('ASTM 1557'!$D$30="","",'ASTM 1557'!$D$30) -> 1-1
A196: 194 | B196: =IF('ASTM 1557'!$E$42="","",'ASTM 1557'!$E$42) ->  | C196: =IF( 'ASTM 1557'!$B$6="","", 'ASTM 1557'!$B$6) -> ASTM D1557 | D196: =IF('ASTM 1557'!$B$42="","",'ASTM 1557'!$B$42) ->  | E196: =IF('ASTM 1557'!$E$30="","",'ASTM 1557'!$E$30) -> 1-2
A197: 195 | B197: =IF('ASTM 1557'!$F$42="","",'ASTM 1557'!$F$42) ->  | C197: =IF( 'ASTM 1557'!$B$6="","", 'ASTM 1557'!$B$6) -> ASTM D1557 | D197: =IF('ASTM 1557'!$B$42="","",'ASTM 1557'!$B$42) ->  | E197: =IF('ASTM 1557'!$F$30="","",'ASTM 1557'!$F$30) -> 1-3
A198: 196 | B198: =IF('ASTM 1557'!$G$42="","",'ASTM 1557'!$G$42) ->  | C198: =IF( 'ASTM 1557'!$B$6="","", 'ASTM 1557'!$B$6) -> ASTM D1557 | D198: =IF('ASTM 1557'!$B$42="","",'ASTM 1557'!$B$42) ->  | E198: =IF('ASTM 1557'!$G$30="","",'ASTM 1557'!$G$30) -> 1-4
A199: 197 | B199: =IF('ASTM 1557'!$I$42="","",'ASTM 1557'!$I$42) ->  | C199: =IF( 'ASTM 1557'!$B$6="","", 'ASTM 1557'!$B$6) -> ASTM D1557 | D199: =IF('ASTM 1557'!$B$42="","",'ASTM 1557'!$B$42) ->  | E199: =IF('ASTM 1557'!$I$30="","",'ASTM 1557'!$I$30) -> 2-1
A200: 198 | B200: =IF('ASTM 1557'!$J$42="","",'ASTM 1557'!$J$42) ->  | C200: =IF( 'ASTM 1557'!$B$6="","", 'ASTM 1557'!$B$6) -> ASTM D1557 | D200: =IF('ASTM 1557'!$B$42="","",'ASTM 1557'!$B$42) ->  | E200: =IF('ASTM 1557'!$J$30="","",'ASTM 1557'!$J$30) -> 2-2
... 188 more rows

Sheet Reference (hidden)
B2: M-D Graph Reference Data and Calculations | R2: Optimum Cement Content | U2: Gradation Limits & Sieve Sizes | AH2: Optimum Cement Content Plot
R3: ='Optimum Cement Content Graph'!$B$32 -> Slope, m = | S3: =SLOPE('RCC Data'!$L$71:$L$79,'RCC Data'!$H$71:$H$79) ->  | U3: Sieve Sizes | X3: Surface | Z3: Base/Subbase
B4: Test Results | J4: M-D Curve Graph Limits | M4: Best-Fit Line Coefficient Reference Data | R4: ='Optimum Cement Content Graph'!$B$33 -> Intercept, b = | S4: =INTERCEPT('RCC Data'!$L$71:$L$79,'RCC Data'!$H$71:$H$79) ->  | U4: Standard | V4: Metric | W4: Graph | X4: Min | Y4: Max | Z4: Min | AA4: Max | AH4: Best Fit Line Coefficients | AM4: M-D Curve Graph Limits
B5: Cement Content | C5: =ROUND('ASTM 1557'!D31,1) ->  | E5: =ROUND('ASTM 1557'!I31,1) ->  | G5: =ROUND('ASTM 1557'!N31,1) ->  | J5: Min Moisture | K5: =MIN('ASTM 1557'!$D$54:$Q$54) -> 0 | M5: N | N5: Y | O5: X | P5: X^2 | R5: Y-Target = | S5: 4400 | U5: 1" | V5: =VLOOKUP(U5,$U$15:$V$43,2,FALSE) -> 25 mm | W5: =VLOOKUP(U5,$U$15:$W$43,3,FALSE) -> 25 | X5: 100 | Y5: 100 | Z5: 100 | AA5: 100 | AC5: =W5 -> 25 | AD5: =AC5 -> 25 | AE5: 0 | AF5: 100 | AH5: Slope, m | AI5: =IF(ISERROR(ROUND(SLOPE('RCC Data'!$L$71:$L$79,'RCC Data'!$H$71:$H$79),1)),"",SLOPE('RCC Data'!$L$71:$L$79,'RCC Data'!$H$71:$H$79)) ->  | AM5: Min Cement | AN5: 5
B6: Max Dry Density | C6: =C14*C7^2+C13*C7+C12 ->  | E6: =E14*E7^2+E13*E7+E12 ->  | G6: =G14*G7^2+G13*G7+G12 ->  | J6: Max Moisture | K6: =MAX('ASTM 1557'!$D$54:$Q$54) -> 0 | M6: 1 | N6: =N('ASTM 1557'!D55) -> 0 | O6: =N('ASTM 1557'!D54) -> 0 | P6: =O6^2 -> 0 | R6: x = | S6: =ROUND((S5-S4)/S3,1) ->  | U6: 3/4" | V6: 19 mm | W6: =VLOOKUP(U6,$U$15:$W$43,3,FALSE) -> 19 | X6: 100 | Y6: 100 | Z6: 90 | AA6: 100 | AC6: =W6 -> 19 | AD6: =AC6 -> 19 | AE6: 0 | AF6: 100 | AH6: Intercept, b | AI6: =IF(ISERROR(ROUND(INTERCEPT('RCC Data'!$L$71:$L$79,'RCC Data'!$H$71:$H$79),1)),"",INTERCEPT('RCC Data'!$L$71:$L$79,'RCC Data'!$H$71:$H$79)) ->  | AM6: Max Cement | AN6: =MAX('ASTM 1557'!$D$31:$Q$31) -> 0
B7: Opt Moist Content | C7: =-C13/(2*C14) ->  | E7: =-E13/(2*E14) ->  | G7: =-G13/(2*G14) ->  | J7: Min Density | K7: =MIN('ASTM 1557'!D55:Q55) -> 0 | M7: 2 | N7: =N('ASTM 1557'!E55) -> 0 | O7: =N('ASTM 1557'!E54) -> 0 | P7: =O7^2 -> 0 | R7: Optimum Cement Content Plot | U7: 1/2" | V7: 12.5 mm | W7: 12.5 | X7: 70 | Y7: 90 | Z7: 70 | AA7: 90 | AC7: 12.5 | AD7: 12.5 | AE7: 0 | AF7: 100 | AH7: Equation | AI7: ="y = "&ROUND(AI5,2)&"x + " &ROUND(AI6,2) ->  | AM7: Min Strength | AN7: 3000
B8: R^2 | C8: =ROUND(RSQ(C20:C23,D20:D23),4) ->  | E8: =ROUND(RSQ(E20:E23,F20:F23),4) ->  | G8: =ROUND(RSQ(G20:G23,H20:H23),4) ->  | J8: Max Density | K8: =MAX('ASTM 1557'!D55:Q55) -> 0 | M8: 3 | N8: =N('ASTM 1557'!F55) -> 0 | O8: =N('ASTM 1557'!F54) -> 0 | P8: =O8^2 -> 0 | R8: =AN5 -> 5 | S8: =S5 -> 4400 | U8: 3/8" | V8: 9.5 mm | W8: 9.5 | X8: 60 | Y8: 85 | Z8: 60 | AA8: 85 | AC8: 9.5 | AD8: 9.5 | AE8: 0 | AF8: 100 | AM8: Max Strength | AN8: =MAX('RCC Data'!N71:O79) -> 0
J9: Maximum Value, x-axis | K9: =MROUND(K6+1,1) -> 1 | M9: 4 | N9: =IF(AND(N8>0,N('ASTM 1557'!G53)=0),#REF!,N('ASTM 1557'!G55)) -> 0 | O9: =IF(AND(O8>0,N('ASTM 1557'!G53)=0),#REF!+2,N('ASTM 1557'!G54)) -> 0 | P9: =O9^2 -> 0 | R9: =IF(OR(ISERROR(S6),S6=""),"",S6) ->  | S9: =S8 -> 4400 | U9: No. 4 | V9: 4.75 mm | W9: 4.75 | X9: 40 | Y9: 60 | Z9: 40 | AA9: 60 | AC9: 4.75 | AD9: 4.75 | AE9: 0 | AF9: 100 | AH9: M-D Curve Begin & End Points | AM9: Maximum Value, x-axis | AN9: =MROUND(AN6+2,5) -> 0
B10: Best Fit Line Coefficients | J10: Minimum Value, x-axis | K10: =IF(ISERROR(MROUND(K5-1,1)),0,MROUND(K5-1,1)) -> 0 | M10: 5 | N10: =#REF! ->  | O10: =#REF! ->  | P10: =O10^2 ->  | R10: =IF(OR(ISERROR(S6),S6=""),"",S6) ->  | S10: 3000 | U10: No. 16 | V10: 1.18 mm | W10: 1.18 | X10: 20 | Y10: 40 | Z10: 20 | AA10: 40 | AC10: 1.18 | AD10: 1.18 | AE10: 0 | AF10: 100 | AH10: Minimum Strength | AI10: =IF(ISERROR((AN13-AI6)/AI5),0,(AN13-AI6)/AI5) -> 0 | AM10: Minimum Value, x-axis | AN10: =AN5 -> 5
B11: Cement Content | C11: =C5 ->  | E11: =E5 ->  | G11: =G5 ->  | J11: Scale | K11: =(K9-K10)/150 -> 0.006666666667 | M11: SUM | N11: =SUM(N8:N10) ->  | O11: =SUM(O8:O10) ->  | P11: =SUM(P6:P10) ->  | U11: No. 100 | V11: .15 µm | W11: 0.15 | X11: 6 | Y11: 18 | Z11: 0 | AA11: 10 | AC11: 0.15 | AD11: 0.15 | AE11: 0 | AF11: 100 | AH11: Wet End Moisture | AI11: =IF(ISERROR((AN12-AI6)/AI5),0,(AN12-AI6)/AI5) -> 0 | AM11: Scale | AN11: =(AN9-AN10)/50 -> -0.1
B12: A0 | C12: =INDEX(LINEST($N$6:$N$9,$O$6:$P$9),3) -> 0 | E12: =INDEX(LINEST($N$13:$N$16,$O$13:$P$16),3) -> 0 | G12: =INDEX(LINEST($N$18:$N$21,$O$18:$P$21),3) -> 0 | J12: Maximum Value, y-axis | K12: =ROUND(K8,0)+2 -> 2 | M12: N | N12: Y | O12: X | P12: X^2 | U12: No. 200 | V12: .075 µm | W12: 0.075 | X12: 2 | Y12: 8 | Z12: -- | AA12: -- | AC12: 0.075 | AD12: 0.075 | AE12: 0 | AF12: 100 | AI12: Best-fit Plot | AM12: Maximum Value, y-axis | AN12: =MROUND(AN8+2000,1000) -> 2000
B13: A1 | C13: =INDEX(LINEST($N$6:$N$9,$O$6:$P$9),2) -> 0 | E13: =INDEX(LINEST($N$13:$N$16,$O$13:$P$16),2) -> 0 | G13: =INDEX(LINEST($N$18:$N$21,$O$18:$P$21),2) -> 0 | J13: Minimum Value, y-axis | K13: =IF(ROUND(K7,0)-2<0,0,ROUND(K7,0)-2) -> 0 | M13: 1 | N13: =N('ASTM 1557'!I55) -> 0 | O13: =N('ASTM 1557'!I54) -> 0 | P13: =O13^2 -> 0 | AI13: =IF(AI10<AN10,AY,AN10) ->  | AJ13: =(AI13-$AI$6)/$AI$5 ->  | AK13: =(AI13*AI$5)+AI$6 ->  | AM13: Minimum Value, y-axis | AN13: =IF(ROUND(AN7,0)-2<0,0,ROUND(AN7,0)) -> 3000
B14: A2 | C14: =INDEX(LINEST($N$6:$N$9,$O$6:$P$9),1) -> 0 | E14: =INDEX(LINEST($N$13:$N$16,$O$13:$P$16),1) -> 0 | G14: =INDEX(LINEST($N$18:$N$21,$O$18:$P$21),1) -> 0 | M14: 2 | N14: =N('ASTM 1557'!J55) -> 0 | O14: =N('ASTM 1557'!J54) -> 0 | P14: =O14^2 -> 0 | U14: English | V14: Metric | W14: Size | AI14: =IF(AI13+$AN$11<=MIN($AN$9,$AI$11),AI13+$AN$11,AI13) ->  | AJ14: =(AI14-$AI$6)/$AI$5 -> 
B15: Equation | C15: ="y = "&ROUND(C14,3)&"x^2 + "&ROUND(C13,3)&"x + " &ROUND(C12,3) -> y = 0x^2 + 0x + 0 | E15: ="y = "&ROUND(E14,3)&"x^2 + "&ROUND(E13,3)&"x + " &ROUND(E12,3) -> y = 0x^2 + 0x + 0 | G15: ="y = "&ROUND(G14,3)&"x^2 + "&ROUND(G13,3)&"x + " &ROUND(G12,3) -> y = 0x^2 + 0x + 0 | J15: M-D Graph Limit boundaries | M15: 3 | N15: =N('ASTM 1557'!K55) -> 0 | O15: =N('ASTM 1557'!K54) -> 0 | P15: =O15^2 -> 0 | U15: 6" | V15: 152 mm | W15: 152 | AI15: =IF(AI14+$AN$11<=$AN$9,AI14+$AN$11,AI14) ->  | AM15: Label X | AN15: 10.1
J16: X | K16: Y | M16: 4 | N16: =IF(AND(N15>0,N('ASTM 1557'!L55)=0),#REF!,N('ASTM 1557'!L55)) -> 0 | O16: =IF(AND(O15>0,N('ASTM 1557'!L54)=0),#REF!+2,N('ASTM 1557'!L54)) -> 0 | P16: =O16^2 -> 0 | U16: 3" | V16: 76 mm | W16: 76 | AM16: Label Y | AN16: =((AI5*AN15)+AI6)+1000 -> 
B17: R^2 Calculations | J17: =K10 -> 0 | K17: =MROUND(K13,5) -> 0 | M17: N | N17: Y | O17: X | P17: X^2 | U17: 2-1/2" | V17: 63 mm | W17: 63
B18: Cement Content | C18: =C11 ->  | E18: =E11 ->  | G18: =G11 ->  | J18: =K10 -> 0 | K18: =MROUND(K12,5) -> 0 | M18: 1 | N18: =N('ASTM 1557'!N55) -> 0 | O18: =N('ASTM 1557'!N54) -> 0 | P18: =O18^2 -> 0 | U18: 2" | V18: 50 mm | W18: 50
C19: Y-Known | D19: Y-Calculated | E19: Y-Known | F19: Y-Calculated | G19: Y-Known | H19: Y-Calculated | J19: =K10 -> 0 | K19: =K18 -> 0 | M19: 2 | N19: =N('ASTM 1557'!O55) -> 0 | O19: =N('ASTM 1557'!O54) -> 0 | P19: =O19^2 -> 0 | U19: 1-3/4" | V19: 45 mm | W19: 45
B20: X-1 | C20: =N6 -> 0 | D20: =($C$14*(VLOOKUP(C20,$N$6:$O$9,2,FALSE))^2)+($C$13*(VLOOKUP(C20,$N$6:$O$9,2,FALSE)))+$C$12 -> 0 | E20: =N13 -> 0 | F20: =($E$14*(VLOOKUP(E20,$N$13:$O$16,2,FALSE))^2)+($E$13*(VLOOKUP(E20,$N$13:$O$16,2,FALSE)))+$E$12 -> 0 | G20: =N18 -> 0 | H20: =($G$14*(VLOOKUP(G20,$N$18:$O$21,2,FALSE))^2)+($G$13*(VLOOKUP(G20,$N$18:$O$21,2,FALSE)))+$G$12 -> 0 | J20: =K9 -> 1 | K20: =K19 -> 0 | M20: 3 | N20: =N('ASTM 1557'!P55) -> 0 | O20: =N('ASTM 1557'!P54) -> 0 | P20: =O20^2 -> 0 | U20: 1-1/2" | V20: 37.5 mm | W20: 37.5
B21: X-2 | C21: =N7 -> 0 | D21: =($C$14*(VLOOKUP(C21,$N$6:$O$9,2,FALSE))^2)+($C$13*(VLOOKUP(C21,$N$6:$O$9,2,FALSE)))+$C$12 -> 0 | E21: =N14 -> 0 | F21: =($E$14*(VLOOKUP(E21,$N$13:$O$16,2,FALSE))^2)+($E$13*(VLOOKUP(E21,$N$13:$O$16,2,FALSE)))+$E$12 -> 0 | G21: =N19 -> 0 | H21: =($G$14*(VLOOKUP(G21,$N$18:$O$21,2,FALSE))^2)+($G$13*(VLOOKUP(G21,$N$18:$O$21,2,FALSE)))+$G$12 -> 0 | J21: =J20 -> 1 | K21: =K20 -> 0 | M21: 4 | N21: =IF(AND(N20>0,N('ASTM 1557'!Q55)=0),#REF!,N('ASTM 1557'!Q55)) -> 0 | O21: =IF(AND(O20>0,N('ASTM 1557'!Q54)=0),#REF!+2,N('ASTM 1557'!Q54)) -> 0 | P21: =O21^2 -> 0 | U21: 1-1/4" | V21: 31.5 mm | W21: 31.5
B22: X-3 | C22: =N8 -> 0 | D22: =($C$14*(VLOOKUP(C22,$N$6:$O$9,2,FALSE))^2)+($C$13*(VLOOKUP(C22,$N$6:$O$9,2,FALSE)))+$C$12 -> 0 | E22: =N15 -> 0 | F22: =($E$14*(VLOOKUP(E22,$N$13:$O$16,2,FALSE))^2)+($E$13*(VLOOKUP(E22,$N$13:$O$16,2,FALSE)))+$E$12 -> 0 | G22: =N20 -> 0 | H22: =($G$14*(VLOOKUP(G22,$N$18:$O$21,2,FALSE))^2)+($G$13*(VLOOKUP(G22,$N$18:$O$21,2,FALSE)))+$G$12 -> 0 | J22: =J21 -> 1 | K22: =K17 -> 0 | U22: 1" | V22: 25 mm | W22: 25
B23: X-4 | C23: =N9 -> 0 | D23: =($C$14*(VLOOKUP(C23,$N$6:$O$9,2,FALSE))^2)+($C$13*(VLOOKUP(C23,$N$6:$O$9,2,FALSE)))+$C$12 -> 0 | E23: =N16 -> 0 | F23: =($E$14*(VLOOKUP(E23,$N$13:$O$16,2,FALSE))^2)+($E$13*(VLOOKUP(E23,$N$13:$O$16,2,FALSE)))+$E$12 -> 0 | G23: =N21 -> 0 | H23: =($G$14*(VLOOKUP(G23,$N$18:$O$21,2,FALSE))^2)+($G$13*(VLOOKUP(G23,$N$18:$O$21,2,FALSE)))+$G$12 -> 0 | J23: =J17 -> 0 | K23: =K22 -> 0 | M23: Gs= | N23: =IF(OR('ASTM 1557'!D24="",'ASTM 1557'!D23="",'ASTM 1557'!D22=""),IF('ASTM 1557'!D26="",2.65,N('ASTM 1557'!D26)),N('ASTM 1557'!D26)) -> 2.65 | O23: ZAV | U23: 7/8" | V23: 22.4 mm | W23: 22.4
J24: =J22 -> 1 | K24: =K23 -> 0 | M24: γw= | N24: 62.5 | O24: Closest point to Max y-Scale | P24: =INDEX(O26:O176,MATCH(MIN(ABS(O26:O176-K12)),ABS(O26:O176-K12),0)) -> 161.349245 | U24: 3/4" | V24: 19 mm | W24: 19
B25: M-D Curve Begin & End Points | M25: ZAV Plot within scale | O25: ZAV - Reference Data | U25: 5/8" | V25: 16 mm | W25: 16
B26: Cement Content | C26: =C18 ->  | E26: =E18 ->  | G26: =G18 ->  | M26: =VLOOKUP(P24,O26:P176,2) -> 1 | N26: =($N$23*$N$24)/(1+$N$23*(M26/100)) -> 161.349245 | O26: =($N$23*$N$24)/(1+$N$23*(P26/100)) -> 161.349245 | P26: =K9 -> 1 | U26: 1/2" | V26: 12.5 mm | W26: 12.5
B27: Dry End Moisture | C27: =IF(ISERROR(((-C13)+(SQRT((C13^2)-(4*C14*(C12-K13)))))/(2*C14)),0,((-C13)+(SQRT((C13^2)-(4*C14*(C12-K13)))))/(2*C14)) -> 0 | E27: =IF(ISERROR(((-E13)+(SQRT((E13^2)-(4*E14*(E12-K13)))))/(2*E14)),0,((-E13)+(SQRT((E13^2)-(4*E14*(E12-K13)))))/(2*E14)) -> 0 | G27: =IF(ISERROR(((-G13)+(SQRT((G13^2)-(4*G14*(G12-K13)))))/(2*G14)),0,((-G13)+(SQRT((G13^2)-(4*G14*(G12-K13)))))/(2*G14)) -> 0 | M27: =IF(M26+$K$11<=$K$9,M26+$K$11,M26) -> 1 | N27: 161.349245 | O27: 161.3770189 | P27: =P26-$K$11 -> 0.9933333333 | U27: 7/16" | V27: 11.2 mm | W27: 11.2
B28: Wet End Moisture | C28: =IF(ISERROR(((-C13)-(SQRT((C13^2)-(4*C14*(C12-K13)))))/(2*C14)),0,((-C13)-(SQRT((C13^2)-(4*C14*(C12-K13)))))/(2*C14)) -> 0 | E28: =IF(ISERROR(((-E13)-(SQRT((E13^2)-(4*E14*(E12-K13)))))/(2*E14)),0,((-E13)-(SQRT((E13^2)-(4*E14*(E12-K13)))))/(2*E14)) -> 0 | G28: =IF(ISERROR(((-G13)-(SQRT((G13^2)-(4*G14*(G12-K13)))))/(2*G14)),0,((-G13)-(SQRT((G13^2)-(4*G14*(G12-K13)))))/(2*G14)) -> 0 | M28: 1 | N28: 161.349245 | O28: 161.4048024 | P28: 0.9866666667 | U28: 3/8" | V28: 9.5 mm | W28: 9.5
C29: M_D Best-fit Plot within scale | E29: M_D Best-fit Plot within scale | G29: M_D Best-fit Plot within scale | M29: 1 | N29: 161.349245 | O29: 161.4325955 | P29: 0.98 | U29: 5/16" | V29: 8 mm | W29: 8
C30: =IF(C27<K10,K10,C27) -> 0 | D30: =$C$12+$C$13*C30+$C$14*C30^2 -> 0 | E30: =IF(E27<K10,K10,E27) -> 0 | F30: =$E$12+$E$13*E30+$E$14*E30^2 -> 0 | G30: =IF(G27<K10,K10,G27) -> 0 | H30: =$G$12+$G$13*G30+$G$14*G30^2 -> 0 | M30: 1 | N30: 161.349245 | O30: 161.4603981 | P30: 0.9733333333 | U30: 1/4" | V30: 6.3 mm | W30: 6.3
C31: =IF(C30+$K$11<=MIN($K$9,$C$28),C30+$K$11,C30) -> 0 | D31: 0 | E31: =IF(E30+$K$11<=MIN($K$9,$E$28),E30+$K$11,E30) -> 0 | F31: 0 | G31: =IF(G30+$K$11<=MIN($K$9,$G$28),G30+$K$11,G30) -> 0 | H31: 0 | M31: 1 | N31: 161.349245 | O31: 161.4882103 | P31: 0.9666666667 | U31: No. 4 | V31: 4.75 mm | W31: 4.75
C32: =IF(C31+$K$11<=$K$9,C31+$K$11,C31) -> 0.006666666667 | D32: 0 | E32: 0 | F32: 0 | G32: 0 | H32: 0 | M32: 1 | N32: 161.349245 | O32: 161.5160321 | P32: 0.96 | U32: No. 6 | V32: 3.35 mm | W32: 3.35
C33: 0.01333333333 | D33: 0 | E33: 0 | F33: 0 | G33: 0 | H33: 0 | M33: 1 | N33: 161.349245 | O33: 161.5438635 | P33: 0.9533333333 | U33: No. 8 | V33: 2.36 mm | W33: 2.36
C34: 0.02 | D34: 0 | E34: 0 | F34: 0 | G34: 0 | H34: 0 | M34: 1 | N34: 161.349245 | O34: 161.5717045 | P34: 0.9466666667 | U34: No. 10 | V34: 2 mm | W34: 2
C35: 0.02666666667 | D35: 0 | E35: 0 | F35: 0 | G35: 0 | H35: 0 | M35: 1 | N35: 161.349245 | O35: 161.5995551 | P35: 0.94 | U35: No. 14 | V35: 1.4 mm | W35: 1.4
C36: 0.03333333333 | D36: 0 | E36: 0 | F36: 0 | G36: 0 | H36: 0 | M36: 1 | N36: 161.349245 | O36: 161.6274153 | P36: 0.9333333333 | U36: No. 16 | V36: 1.18 mm | W36: 1.18
C37: 0.04 | D37: 0 | E37: 0 | F37: 0 | G37: 0 | H37: 0 | M37: 1 | N37: 161.349245 | O37: 161.6552851 | P37: 0.9266666667 | U37: No. 20 | V37: .85 µm | W37: 0.85
C38: 0.04666666667 | D38: 0 | E38: 0 | F38: 0 | G38: 0 | H38: 0 | M38: 1 | N38: 161.349245 | O38: 161.6831645 | P38: 0.92 | U38: No. 30 | V38: .6 µm | W38: 0.6
C39: 0.05333333333 | D39: 0 | E39: 0 | F39: 0 | G39: 0 | H39: 0 | M39: 1 | N39: 161.349245 | O39: 161.7110535 | P39: 0.9133333333 | U39: No. 40 | V39: .425 µm | W39: 0.425
C40: 0.06 | D40: 0 | E40: 0 | F40: 0 | G40: 0 | H40: 0 | M40: 1 | N40: 161.349245 | O40: 161.7389521 | P40: 0.9066666667 | U40: No. 50 | V40: .3 µm | W40: 0.3
C41: 0.06666666667 | D41: 0 | E41: 0 | F41: 0 | G41: 0 | H41: 0 | M41: 1 | N41: 161.349245 | O41: 161.7668604 | P41: 0.9 | U41: No. 80 | V41: .18 µm | W41: 0.18
C42: 0.07333333333 | D42: 0 | E42: 0 | F42: 0 | G42: 0 | H42: 0 | M42: 1 | N42: 161.349245 | O42: 161.7947783 | P42: 0.8933333333 | U42: No. 100 | V42: .15 µm | W42: 0.15
C43: 0.08 | D43: 0 | E43: 0 | F43: 0 | G43: 0 | H43: 0 | M43: 1 | N43: 161.349245 | O43: 161.8227058 | P43: 0.8866666667 | U43: No. 200 | V43: .075 µm | W43: 0.075
C44: 0.08666666667 | D44: 0 | E44: 0 | F44: 0 | G44: 0 | H44: 0 | M44: 1 | N44: 161.349245 | O44: 161.850643 | P44: 0.88
C45: 0.09333333333 | D45: 0 | E45: 0 | F45: 0 | G45: 0 | H45: 0 | M45: 1 | N45: 161.349245 | O45: 161.8785898 | P45: 0.8733333333
C46: 0.1 | D46: 0 | E46: 0 | F46: 0 | G46: 0 | H46: 0 | M46: 1 | N46: 161.349245 | O46: 161.9065463 | P46: 0.8666666667
C47: 0.1066666667 | D47: 0 | E47: 0 | F47: 0 | G47: 0 | H47: 0 | M47: 1 | N47: 161.349245 | O47: 161.9345125 | P47: 0.86 | AI47: =IF(AI46+$AN$11<=$AN$9,AI46+$AN$11,AI46) -> 
C48: 0.1133333333 | D48: 0 | E48: 0 | F48: 0 | G48: 0 | H48: 0 | M48: 1 | N48: 161.349245 | O48: 161.9624883 | P48: 0.8533333333
C49: 0.12 | D49: 0 | E49: 0 | F49: 0 | G49: 0 | H49: 0 | M49: 1 | N49: 161.349245 | O49: 161.9904737 | P49: 0.8466666667
C50: 0.1266666667 | D50: 0 | E50: 0 | F50: 0 | G50: 0 | H50: 0 | M50: 1 | N50: 161.349245 | O50: 162.0184689 | P50: 0.84
C51: 0.1333333333 | D51: 0 | E51: 0 | F51: 0 | G51: 0 | H51: 0 | M51: 1 | N51: 161.349245 | O51: 162.0464737 | P51: 0.8333333333
C52: 0.14 | D52: 0 | E52: 0 | F52: 0 | G52: 0 | H52: 0 | M52: 1 | N52: 161.349245 | O52: 162.0744882 | P52: 0.8266666667
C53: 0.1466666667 | D53: 0 | E53: 0 | F53: 0 | G53: 0 | H53: 0 | M53: 1 | N53: 161.349245 | O53: 162.1025124 | P53: 0.82
C54: 0.1533333333 | D54: 0 | E54: 0 | F54: 0 | G54: 0 | H54: 0 | M54: 1 | N54: 161.349245 | O54: 162.1305463 | P54: 0.8133333333
C55: 0.16 | D55: 0 | E55: 0 | F55: 0 | G55: 0 | H55: 0 | M55: 1 | N55: 161.349245 | O55: 162.1585899 | P55: 0.8066666667
C56: 0.1666666667 | D56: 0 | E56: 0 | F56: 0 | G56: 0 | H56: 0 | M56: 1 | N56: 161.349245 | O56: 162.1866432 | P56: 0.8
C57: 0.1733333333 | D57: 0 | E57: 0 | F57: 0 | G57: 0 | H57: 0 | M57: 1 | N57: 161.349245 | O57: 162.2147062 | P57: 0.7933333333
C58: 0.18 | D58: 0 | E58: 0 | F58: 0 | G58: 0 | H58: 0 | M58: 1 | N58: =($N$23*$N$24)/(1+$N$23*(M58/100)) -> 161.349245 | O58: =($N$23*$N$24)/(1+$N$23*(P58/100)) -> 162.2427789 | P58: 0.7866666667
C59: 0.1866666667 | D59: 0 | E59: 0 | F59: 0 | G59: 0 | H59: 0 | M59: =IF(M58+$K$11<=$K$9,M58+$K$11,M58) -> 1 | N59: 161.349245 | O59: 162.2708613 | P59: =P58-$K$11 -> 0.78
C60: 0.1933333333 | D60: 0 | E60: 0 | F60: 0 | G60: 0 | H60: 0 | M60: 1 | N60: 161.349245 | O60: 162.2989534 | P60: 0.7733333333
C61: 0.2 | D61: 0 | E61: 0 | F61: 0 | G61: 0 | H61: 0 | M61: 1 | N61: 161.349245 | O61: 162.3270553 | P61: 0.7666666667
C62: 0.2066666667 | D62: =$C$12+$C$13*C62+$C$14*C62^2 -> 0 | E62: 0 | F62: =$E$12+$E$13*E62+$E$14*E62^2 -> 0 | G62: 0 | H62: =$G$12+$G$13*G62+$G$14*G62^2 -> 0 | M62: 1 | N62: 161.349245 | O62: 162.3551669 | P62: 0.76
C63: 0.2133333333 | D63: 0 | E63: =IF(E62+$K$11<=MIN($K$9,$E$28),E62+$K$11,E62) -> 0 | F63: 0 | G63: =IF(G62+$K$11<=MIN($K$9,$G$28),G62+$K$11,G62) -> 0 | H63: 0 | M63: 1 | N63: 161.349245 | O63: 162.3832883 | P63: 0.7533333333
C64: =IF(C63+$K$11<=$K$9,C63+$K$11,C63) -> 0.22 | D64: 0 | E64: 0 | F64: 0 | G64: 0 | H64: 0 | M64: 1 | N64: 161.349245 | O64: 162.4114194 | P64: 0.7466666667
C65: 0.2266666667 | D65: 0 | E65: 0 | F65: 0 | G65: 0 | H65: 0 | M65: 1 | N65: 161.349245 | O65: 162.4395602 | P65: 0.74
C66: 0.2333333333 | D66: 0 | E66: 0 | F66: 0 | G66: 0 | H66: 0 | M66: 1 | N66: 161.349245 | O66: 162.4677108 | P66: 0.7333333333
C67: 0.24 | D67: 0 | E67: 0 | F67: 0 | G67: 0 | H67: 0 | M67: 1 | N67: 161.349245 | O67: 162.4958712 | P67: 0.7266666667
C68: 0.2466666667 | D68: 0 | E68: 0 | F68: 0 | G68: 0 | H68: 0 | M68: 1 | N68: 161.349245 | O68: 162.5240413 | P68: 0.72
C69: 0.2533333333 | D69: 0 | E69: 0 | F69: 0 | G69: 0 | H69: 0 | M69: 1 | N69: 161.349245 | O69: 162.5522212 | P69: 0.7133333333
C70: 0.26 | D70: 0 | E70: 0 | F70: 0 | G70: 0 | H70: 0 | M70: 1 | N70: 161.349245 | O70: 162.5804108 | P70: 0.7066666667
C71: 0.2666666667 | D71: 0 | E71: 0 | F71: 0 | G71: 0 | H71: 0 | M71: 1 | N71: 161.349245 | O71: 162.6086103 | P71: 0.7
C72: 0.2733333333 | D72: 0 | E72: 0 | F72: 0 | G72: 0 | H72: 0 | M72: 1 | N72: 161.349245 | O72: 162.6368195 | P72: 0.6933333333
C73: 0.28 | D73: 0 | E73: 0 | F73: 0 | G73: 0 | H73: 0 | M73: 1 | N73: 161.349245 | O73: 162.6650385 | P73: 0.6866666667
C74: 0.2866666667 | D74: 0 | E74: 0 | F74: 0 | G74: 0 | H74: 0 | M74: 1 | N74: 161.349245 | O74: 162.6932673 | P74: 0.68
C75: 0.2933333333 | D75: 0 | E75: 0 | F75: 0 | G75: 0 | H75: 0 | M75: 1 | N75: 161.349245 | O75: 162.7215059 | P75: 0.6733333333
C76: 0.3 | D76: 0 | E76: 0 | F76: 0 | G76: 0 | H76: 0 | M76: 1 | N76: 161.349245 | O76: 162.7497543 | P76: 0.6666666667
C77: 0.3066666667 | D77: 0 | E77: 0 | F77: 0 | G77: 0 | H77: 0 | M77: 1 | N77: 161.349245 | O77: 162.7780126 | P77: 0.66
C78: 0.3133333333 | D78: 0 | E78: 0 | F78: 0 | G78: 0 | H78: 0 | M78: 1 | N78: 161.349245 | O78: 162.8062806 | P78: 0.6533333333 | AJ78: =(AI78-$AI$6)/$AI$5 ->  | AK78: =(AI78*AI$5)+AI$6 -> 
C79: 0.32 | D79: 0 | E79: 0 | F79: 0 | G79: 0 | H79: 0 | M79: 1 | N79: 161.349245 | O79: 162.8345585 | P79: 0.6466666667 | AI79: =IF(AI78+$AN$11<=$AN$9,AI78+$AN$11,AI78) -> 
C80: 0.3266666667 | D80: 0 | E80: 0 | F80: 0 | G80: 0 | H80: 0 | M80: 1 | N80: 161.349245 | O80: 162.8628461 | P80: 0.64
C81: 0.3333333333 | D81: 0 | E81: 0 | F81: 0 | G81: 0 | H81: 0 | M81: 1 | N81: 161.349245 | O81: 162.8911436 | P81: 0.6333333333
C82: 0.34 | D82: 0 | E82: 0 | F82: 0 | G82: 0 | H82: 0 | M82: 1 | N82: 161.349245 | O82: 162.919451 | P82: 0.6266666667
C83: 0.3466666667 | D83: 0 | E83: 0 | F83: 0 | G83: 0 | H83: 0 | M83: 1 | N83: 161.349245 | O83: 162.9477682 | P83: 0.62
C84: 0.3533333333 | D84: 0 | E84: 0 | F84: 0 | G84: 0 | H84: 0 | M84: 1 | N84: 161.349245 | O84: 162.9760952 | P84: 0.6133333333
C85: 0.36 | D85: 0 | E85: 0 | F85: 0 | G85: 0 | H85: 0 | M85: 1 | N85: 161.349245 | O85: 163.0044321 | P85: 0.6066666667
C86: 0.3666666667 | D86: 0 | E86: 0 | F86: 0 | G86: 0 | H86: 0 | M86: 1 | N86: 161.349245 | O86: 163.0327788 | P86: 0.6
C87: 0.3733333333 | D87: 0 | E87: 0 | F87: 0 | G87: 0 | H87: 0 | M87: 1 | N87: 161.349245 | O87: 163.0611354 | P87: 0.5933333333 | AI87: =IF(AND($C$12+$C$13*AI86+$C$14*AI86^2>$K$13,$C$12+$C$13*(AI86+$K$11)+$C$14*(AI86+$K$11)^2>$K$13),AI86+$K$11,AI86) -> 
C88: 0.38 | D88: 0 | E88: 0 | F88: 0 | G88: 0 | H88: 0 | M88: 1 | N88: 161.349245 | O88: 163.0895019 | P88: 0.5866666667
C89: 0.3866666667 | D89: 0 | E89: 0 | F89: 0 | G89: 0 | H89: 0 | M89: 1 | N89: 161.349245 | O89: 163.1178782 | P89: 0.58
C90: 0.3933333333 | D90: 0 | E90: 0 | F90: 0 | G90: 0 | H90: 0 | M90: 1 | N90: =($N$23*$N$24)/(1+$N$23*(M90/100)) -> 161.349245 | O90: =($N$23*$N$24)/(1+$N$23*(P90/100)) -> 163.1462644 | P90: 0.5733333333
C91: 0.4 | D91: 0 | E91: 0 | F91: 0 | G91: 0 | H91: 0 | M91: =IF(M90+$K$11<=$K$9,M90+$K$11,M90) -> 1 | N91: 161.349245 | O91: 163.1746605 | P91: =P90-$K$11 -> 0.5666666667
C92: 0.4066666667 | D92: 0 | E92: 0 | F92: 0 | G92: 0 | H92: 0 | M92: 1 | N92: 161.349245 | O92: 163.2030665 | P92: 0.56
C93: 0.4133333333 | D93: 0 | E93: 0 | F93: 0 | G93: 0 | H93: 0 | M93: 1 | N93: 161.349245 | O93: 163.2314824 | P93: 0.5533333333
C94: 0.42 | D94: =$C$12+$C$13*C94+$C$14*C94^2 -> 0 | E94: 0 | F94: =$E$12+$E$13*E94+$E$14*E94^2 -> 0 | G94: 0 | H94: =$G$12+$G$13*G94+$G$14*G94^2 -> 0 | M94: 1 | N94: 161.349245 | O94: 163.2599081 | P94: 0.5466666667
C95: 0.4266666667 | D95: 0 | E95: =IF(E94+$K$11<=MIN($K$9,$E$28),E94+$K$11,E94) -> 0 | F95: 0 | G95: =IF(G94+$K$11<=MIN($K$9,$G$28),G94+$K$11,G94) -> 0 | H95: 0 | M95: 1 | N95: 161.349245 | O95: 163.2883438 | P95: 0.54
C96: =IF(C95+$K$11<=$K$9,C95+$K$11,C95) -> 0.4333333333 | D96: 0 | E96: 0 | F96: 0 | G96: 0 | H96: 0 | M96: 1 | N96: 161.349245 | O96: 163.3167894 | P96: 0.5333333333
C97: 0.44 | D97: 0 | E97: 0 | F97: 0 | G97: 0 | H97: 0 | M97: 1 | N97: 161.349245 | O97: 163.3452449 | P97: 0.5266666667
C98: 0.4466666667 | D98: 0 | E98: 0 | F98: 0 | G98: 0 | H98: 0 | M98: 1 | N98: 161.349245 | O98: 163.3737103 | P98: 0.52
C99: 0.4533333333 | D99: 0 | E99: 0 | F99: 0 | G99: 0 | H99: 0 | M99: 1 | N99: 161.349245 | O99: 163.4021856 | P99: 0.5133333333
C100: 0.46 | D100: 0 | E100: 0 | F100: 0 | G100: 0 | H100: 0 | M100: 1 | N100: 161.349245 | O100: 163.4306709 | P100: 0.5066666667
C101: 0.4666666667 | D101: 0 | E101: 0 | F101: 0 | G101: 0 | H101: 0 | M101: 1 | N101: 161.349245 | O101: 163.459166 | P101: 0.5
C102: 0.4733333333 | D102: 0 | E102: 0 | F102: 0 | G102: 0 | H102: 0 | M102: 1 | N102: 161.349245 | O102: 163.4876712 | P102: 0.4933333333
C103: 0.48 | D103: 0 | E103: 0 | F103: 0 | G103: 0 | H103: 0 | M103: 1 | N103: 161.349245 | O103: 163.5161863 | P103: 0.4866666667
C104: =IF(AND($C$12+$C$13*C103+$C$14*C103^2>$K$13,$C$12+$C$13*(C103+$K$11)+$C$14*(C103+$K$11)^2>$K$13),C103+$K$11,C103) -> 0.48 | D104: 0 | E104: =IF(AND($E$12+$E$13*E103+$E$14*E103^2>$K$13,$E$12+$E$13*(E103+$K$11)+$E$14*(E103+$K$11)^2>$K$13),E103+$K$11,E103) -> 0 | F104: 0 | G104: =IF(AND($G$12+$G$13*G103+$G$14*G103^2>$K$13,$G$12+$G$13*(G103+$K$11)+$G$14*(G103+$K$11)^2>$K$13),G103+$K$11,G103) -> 0 | H104: 0 | M104: 1 | N104: 161.349245 | O104: 163.5447113 | P104: 0.48
C105: 0.48 | D105: 0 | E105: 0 | F105: 0 | G105: 0 | H105: 0 | M105: 1 | N105: 161.349245 | O105: 163.5732462 | P105: 0.4733333333
C106: 0.48 | D106: 0 | E106: 0 | F106: 0 | G106: 0 | H106: 0 | M106: 1 | N106: 161.349245 | O106: 163.6017912 | P106: 0.4666666667
C107: 0.48 | D107: 0 | E107: 0 | F107: 0 | G107: 0 | H107: 0 | M107: 1 | N107: 161.349245 | O107: 163.6303461 | P107: 0.46
C108: 0.48 | D108: 0 | E108: 0 | F108: 0 | G108: 0 | H108: 0 | M108: 1 | N108: 161.349245 | O108: 163.6589109 | P108: 0.4533333333
C109: 0.48 | D109: 0 | E109: 0 | F109: 0 | G109: 0 | H109: 0 | M109: 1 | N109: 161.349245 | O109: 163.6874858 | P109: 0.4466666667
C110: 0.48 | D110: 0 | E110: 0 | F110: 0 | G110: 0 | H110: 0 | M110: 1 | N110: 161.349245 | O110: 163.7160706 | P110: 0.44
C111: 0.48 | D111: 0 | E111: 0 | F111: 0 | G111: 0 | H111: 0 | M111: 1 | N111: 161.349245 | O111: 163.7446654 | P111: 0.4333333333
C112: 0.48 | D112: 0 | E112: 0 | F112: 0 | G112: 0 | H112: 0 | M112: 1 | N112: 161.349245 | O112: 163.7732702 | P112: 0.4266666667
C113: 0.48 | D113: 0 | E113: 0 | F113: 0 | G113: 0 | H113: 0 | M113: 1 | N113: 161.349245 | O113: 163.801885 | P113: 0.42
C114: 0.48 | D114: 0 | E114: 0 | F114: 0 | G114: 0 | H114: 0 | M114: 1 | N114: 161.349245 | O114: 163.8305098 | P114: 0.4133333333
C115: 0.48 | D115: 0 | E115: 0 | F115: 0 | G115: 0 | H115: 0 | M115: 1 | N115: 161.349245 | O115: 163.8591446 | P115: 0.4066666667
C116: 0.48 | D116: 0 | E116: 0 | F116: 0 | G116: 0 | H116: 0 | M116: 1 | N116: 161.349245 | O116: 163.8877894 | P116: 0.4
C117: 0.48 | D117: 0 | E117: 0 | F117: 0 | G117: 0 | H117: 0 | M117: 1 | N117: 161.349245 | O117: 163.9164443 | P117: 0.3933333333
C118: 0.48 | D118: 0 | E118: 0 | F118: 0 | G118: 0 | H118: 0 | M118: 1 | N118: 161.349245 | O118: 163.9451091 | P118: 0.3866666667
C119: 0.48 | D119: 0 | E119: 0 | F119: 0 | G119: 0 | H119: 0 | M119: 1 | N119: 161.349245 | O119: 163.973784 | P119: 0.38
C120: 0.48 | D120: 0 | E120: 0 | F120: 0 | G120: 0 | H120: 0 | M120: 1 | N120: 161.349245 | O120: 164.0024689 | P120: 0.3733333333
C121: 0.48 | D121: 0 | E121: 0 | F121: 0 | G121: 0 | H121: 0 | M121: 1 | N121: 161.349245 | O121: 164.0311639 | P121: 0.3666666667
C122: 0.48 | D122: 0 | E122: 0 | F122: 0 | G122: 0 | H122: 0 | M122: 1 | N122: =($N$23*$N$24)/(1+$N$23*(M122/100)) -> 161.349245 | O122: =($N$23*$N$24)/(1+$N$23*(P122/100)) -> 164.0598689 | P122: 0.36
C123: 0.48 | D123: 0 | E123: 0 | F123: 0 | G123: 0 | H123: 0 | M123: =IF(M122+$K$11<=$K$9,M122+$K$11,M122) -> 1 | N123: 161.349245 | O123: 164.0885839 | P123: =P122-$K$11 -> 0.3533333333
C124: 0.48 | D124: 0 | E124: 0 | F124: 0 | G124: 0 | H124: 0 | M124: 1 | N124: 161.349245 | O124: 164.117309 | P124: 0.3466666667
C125: 0.48 | D125: 0 | E125: 0 | F125: 0 | G125: 0 | H125: 0 | M125: 1 | N125: 161.349245 | O125: 164.1460441 | P125: 0.34
C126: 0.48 | D126: =$C$12+$C$13*C126+$C$14*C126^2 -> 0 | E126: 0 | F126: =$E$12+$E$13*E126+$E$14*E126^2 -> 0 | G126: 0 | H126: =$G$12+$G$13*G126+$G$14*G126^2 -> 0 | M126: 1 | N126: 161.349245 | O126: 164.1747894 | P126: 0.3333333333
C127: 0.48 | D127: 0 | E127: 0 | F127: 0 | G127: 0 | H127: 0 | M127: 1 | N127: 161.349245 | O127: 164.2035446 | P127: 0.3266666667
C128: 0.48 | D128: 0 | E128: 0 | F128: 0 | G128: 0 | H128: 0 | M128: 1 | N128: 161.349245 | O128: 164.23231 | P128: 0.32
C129: 0.48 | D129: 0 | E129: 0 | F129: 0 | G129: 0 | H129: 0 | M129: 1 | N129: 161.349245 | O129: 164.2610855 | P129: 0.3133333333
C130: 0.48 | D130: 0 | E130: 0 | F130: 0 | G130: 0 | H130: 0 | M130: 1 | N130: 161.349245 | O130: 164.289871 | P130: 0.3066666667
C131: 0.48 | D131: 0 | E131: 0 | F131: 0 | G131: 0 | H131: 0 | M131: 1 | N131: 161.349245 | O131: 164.3186666 | P131: 0.3
C132: 0.48 | D132: 0 | E132: 0 | F132: 0 | G132: 0 | H132: 0 | M132: 1 | N132: 161.349245 | O132: 164.3474723 | P132: 0.2933333333
C133: 0.48 | D133: 0 | E133: 0 | F133: 0 | G133: 0 | H133: 0 | M133: 1 | N133: 161.349245 | O133: 164.3762881 | P133: 0.2866666667
C134: 0.48 | D134: 0 | E134: 0 | F134: 0 | G134: 0 | H134: 0 | M134: 1 | N134: 161.349245 | O134: 164.4051141 | P134: 0.28
C135: 0.48 | D135: 0 | E135: 0 | F135: 0 | G135: 0 | H135: 0 | M135: 1 | N135: 161.349245 | O135: 164.4339501 | P135: 0.2733333333
C136: =IF(AND($C$12+$C$13*C135+$C$14*C135^2>$K$13,$C$12+$C$13*(C135+$K$11)+$C$14*(C135+$K$11)^2>$K$13),C135+$K$11,C135) -> 0.48 | D136: 0 | E136: =IF(AND($E$12+$E$13*E135+$E$14*E135^2>$K$13,$E$12+$E$13*(E135+$K$11)+$E$14*(E135+$K$11)^2>$K$13),E135+$K$11,E135) -> 0 | F136: 0 | G136: =IF(AND($G$12+$G$13*G135+$G$14*G135^2>$K$13,$G$12+$G$13*(G135+$K$11)+$G$14*(G135+$K$11)^2>$K$13),G135+$K$11,G135) -> 0 | H136: 0 | M136: 1 | N136: 161.349245 | O136: 164.4627962 | P136: 0.2666666667
C137: 0.48 | D137: 0 | E137: 0 | F137: 0 | G137: 0 | H137: 0 | M137: 1 | N137: 161.349245 | O137: 164.4916525 | P137: 0.26
C138: 0.48 | D138: 0 | E138: 0 | F138: 0 | G138: 0 | H138: 0 | M138: 1 | N138: 161.349245 | O138: 164.5205189 | P138: 0.2533333333
C139: 0.48 | D139: 0 | E139: 0 | F139: 0 | G139: 0 | H139: 0 | M139: 1 | N139: 161.349245 | O139: 164.5493955 | P139: 0.2466666667
C140: 0.48 | D140: 0 | E140: 0 | F140: 0 | G140: 0 | H140: 0 | M140: 1 | N140: 161.349245 | O140: 164.5782821 | P140: 0.24
C141: 0.48 | D141: 0 | E141: 0 | F141: 0 | G141: 0 | H141: 0 | M141: 1 | N141: 161.349245 | O141: 164.6071789 | P141: 0.2333333333
C142: 0.48 | D142: 0 | E142: 0 | F142: 0 | G142: 0 | H142: 0 | M142: 1 | N142: 161.349245 | O142: 164.6360859 | P142: 0.2266666667
C143: 0.48 | D143: 0 | E143: 0 | F143: 0 | G143: 0 | H143: 0 | M143: 1 | N143: 161.349245 | O143: 164.665003 | P143: 0.22
C144: 0.48 | D144: 0 | E144: 0 | F144: 0 | G144: 0 | H144: 0 | M144: 1 | N144: 161.349245 | O144: 164.6939303 | P144: 0.2133333333
C145: 0.48 | D145: 0 | E145: 0 | F145: 0 | G145: 0 | H145: 0 | M145: 1 | N145: 161.349245 | O145: 164.7228678 | P145: 0.2066666667
C146: 0.48 | D146: 0 | E146: 0 | F146: 0 | G146: 0 | H146: 0 | M146: 1 | N146: 161.349245 | O146: 164.7518154 | P146: 0.2
C147: 0.48 | D147: 0 | E147: 0 | F147: 0 | G147: 0 | H147: 0 | M147: 1 | N147: 161.349245 | O147: 164.7807732 | P147: 0.1933333333
C148: 0.48 | D148: 0 | E148: 0 | F148: 0 | G148: 0 | H148: 0 | M148: 1 | N148: 161.349245 | O148: 164.8097411 | P148: 0.1866666667
C149: 0.48 | D149: 0 | E149: 0 | F149: 0 | G149: 0 | H149: 0 | M149: 1 | N149: 161.349245 | O149: 164.8387193 | P149: 0.18
C150: 0.48 | D150: 0 | E150: 0 | F150: 0 | G150: 0 | H150: 0 | M150: 1 | N150: 161.349245 | O150: 164.8677077 | P150: 0.1733333333
C151: 0.48 | D151: 0 | E151: 0 | F151: 0 | G151: 0 | H151: 0 | M151: 1 | N151: 161.349245 | O151: 164.8967062 | P151: 0.1666666667 | AI151: =IF(AND($C$12+$C$13*AI150+$C$14*AI150^2>$K$13,$C$12+$C$13*(AI150+$K$11)+$C$14*(AI150+$K$11)^2>$K$13),AI150+$K$11,AI150) -> 
C152: 0.48 | D152: 0 | E152: 0 | F152: 0 | G152: 0 | H152: 0 | M152: 1 | N152: 161.349245 | O152: 164.925715 | P152: 0.16
C153: 0.48 | D153: 0 | E153: 0 | F153: 0 | G153: 0 | H153: 0 | M153: 1 | N153: 161.349245 | O153: 164.9547339 | P153: 0.1533333333
C154: 0.48 | D154: 0 | E154: 0 | F154: 0 | G154: 0 | H154: 0 | M154: 1 | N154: =($N$23*$N$24)/(1+$N$23*(M154/100)) -> 161.349245 | O154: =($N$23*$N$24)/(1+$N$23*(P154/100)) -> 164.9837631 | P154: 0.1466666667
C155: 0.48 | D155: 0 | E155: 0 | F155: 0 | G155: 0 | H155: 0 | M155: =IF(M154+$K$11<=$K$9,M154+$K$11,M154) -> 1 | N155: 161.349245 | O155: 165.0128025 | P155: =P154-$K$11 -> 0.14
C156: 0.48 | D156: 0 | E156: 0 | F156: 0 | G156: 0 | H156: 0 | M156: 1 | N156: 161.349245 | O156: 165.0418521 | P156: 0.1333333333
C157: 0.48 | D157: 0 | E157: 0 | F157: 0 | G157: 0 | H157: 0 | M157: 1 | N157: 161.349245 | O157: 165.070912 | P157: 0.1266666667
C158: 0.48 | D158: =$C$12+$C$13*C158+$C$14*C158^2 -> 0 | E158: 0 | F158: =$E$12+$E$13*E158+$E$14*E158^2 -> 0 | G158: 0 | H158: =$G$12+$G$13*G158+$G$14*G158^2 -> 0 | M158: 1 | N158: 161.349245 | O158: 165.0999821 | P158: 0.12
C159: 0.48 | D159: 0 | E159: 0 | F159: 0 | G159: 0 | H159: 0 | M159: 1 | N159: 161.349245 | O159: 165.1290624 | P159: 0.1133333333
C160: 0.48 | D160: 0 | E160: 0 | F160: 0 | G160: 0 | H160: 0 | M160: 1 | N160: 161.349245 | O160: 165.158153 | P160: 0.1066666667
C161: 0.48 | D161: 0 | E161: 0 | F161: 0 | G161: 0 | H161: 0 | M161: 1 | N161: 161.349245 | O161: 165.1872538 | P161: 0.1
C162: 0.48 | D162: 0 | E162: 0 | F162: 0 | G162: 0 | H162: 0 | M162: 1 | N162: 161.349245 | O162: 165.2163649 | P162: 0.09333333333
C163: 0.48 | D163: 0 | E163: 0 | F163: 0 | G163: 0 | H163: 0 | M163: 1 | N163: 161.349245 | O163: 165.2454862 | P163: 0.08666666667
C164: 0.48 | D164: 0 | E164: 0 | F164: 0 | G164: 0 | H164: 0 | M164: 1 | N164: 161.349245 | O164: 165.2746178 | P164: 0.08
C165: 0.48 | D165: 0 | E165: 0 | F165: 0 | G165: 0 | H165: 0 | M165: 1 | N165: 161.349245 | O165: 165.3037597 | P165: 0.07333333333
C166: 0.48 | D166: 0 | E166: 0 | F166: 0 | G166: 0 | H166: 0 | M166: 1 | N166: 161.349245 | O166: 165.3329119 | P166: 0.06666666667
C167: 0.48 | D167: 0 | E167: 0 | F167: 0 | G167: 0 | H167: 0 | M167: 1 | N167: 161.349245 | O167: 165.3620743 | P167: 0.06
C168: =IF(AND($C$12+$C$13*C167+$C$14*C167^2>$K$13,$C$12+$C$13*(C167+$K$11)+$C$14*(C167+$K$11)^2>$K$13),C167+$K$11,C167) -> 0.48 | D168: 0 | E168: =IF(AND($E$12+$E$13*E167+$E$14*E167^2>$K$13,$E$12+$E$13*(E167+$K$11)+$E$14*(E167+$K$11)^2>$K$13),E167+$K$11,E167) -> 0 | F168: 0 | G168: =IF(AND($G$12+$G$13*G167+$G$14*G167^2>$K$13,$G$12+$G$13*(G167+$K$11)+$G$14*(G167+$K$11)^2>$K$13),G167+$K$11,G167) -> 0 | H168: 0 | M168: 1 | N168: 161.349245 | O168: 165.391247 | P168: 0.05333333333
C169: 0.48 | D169: 0 | E169: 0 | F169: 0 | G169: 0 | H169: 0 | M169: 1 | N169: 161.349245 | O169: 165.4204301 | P169: 0.04666666667
C170: 0.48 | D170: 0 | E170: 0 | F170: 0 | G170: 0 | H170: 0 | M170: 1 | N170: 161.349245 | O170: 165.4496234 | P170: 0.04
C171: 0.48 | D171: 0 | E171: 0 | F171: 0 | G171: 0 | H171: 0 | M171: 1 | N171: 161.349245 | O171: 165.478827 | P171: 0.03333333333
C172: 0.48 | D172: 0 | E172: 0 | F172: 0 | G172: 0 | H172: 0 | M172: 1 | N172: 161.349245 | O172: 165.508041 | P172: 0.02666666667
C173: 0.48 | D173: 0 | E173: 0 | F173: 0 | G173: 0 | H173: 0 | M173: 1 | N173: 161.349245 | O173: 165.5372652 | P173: 0.02
C174: 0.48 | D174: 0 | E174: 0 | F174: 0 | G174: 0 | H174: 0 | M174: 1 | N174: 161.349245 | O174: 165.5664998 | P174: 0.01333333333
C175: 0.48 | D175: 0 | E175: 0 | F175: 0 | G175: 0 | H175: 0 | M175: 1 | N175: 161.349245 | O175: 165.5957448 | P175: 0.006666666667
C176: 0.48 | D176: 0 | E176: 0 | F176: 0 | G176: 0 | H176: 0 | M176: 1 | N176: 161.349245 | O176: 165.625 | P176: -5e-14
C177: 0.48 | D177: 0 | E177: 0 | F177: 0 | G177: 0 | H177: 0
C178: 0.48 | D178: 0 | E178: 0 | F178: 0 | G178: 0 | H178: 0
C179: 0.48 | D179: 0 | E179: 0 | F179: 0 | G179: 0 | H179: 0
C180: 0.48 | D180: 0 | E180: 0 | F180: 0 | G180: 0 | H180: 0
